Workbook

Sheet Note informative
A4: Questo documento è stato tradotto sulla base dello strumento di calcolo della redditività "Wirtschaflichkeitsrechnung " sviluppato nell'ambito del programma austriaco "klimaaktiv QM Heizwerke".
A5: La traduzione è stata realizzata nell'ambito del progetto Interreg Central Europe "ENTRAIN - ENhancing renewable heaT planning for improving the aiR quAlity of commuNities".
A8: Si prega di contattare Sabrina Metz all'indirizzo s.metz@aee.at per segnalazioni riguardanti eventuali bug nello strumento o qualsiasi suggerimento
A10: "klimaaktiv QM Heizwerke" è un programma di gestione della qualità finalizzato a migliorare la qualità tecnica e l'efficienza degli impianti di riscaldamento e delle reti di teleriscaldamento a biomassa installati in Austria, attraverso il controllo di qualità durante la fase di progettazione, costruzione e gestione. Per maggiori dettagli e informazioni sul programma consultare il sito www.klimaaktiv.at/qmheizwerke
A12: Il programma "klimaaktiv QM Heizwerke" è sostenuto dal Ministero federale austriaco per la protezione del clima, l'ambiente, l'energia, la mobilità, l'innovazione e la tecnologia (BMK).

Sheet Note esplicative
B1: Note esplicative
B2: Informazioni di base di questo strumento: Disclaimer Questo strumento Excel seppur redatto con massima cura e diligenza, potrebbe non essere privo di errori, imprecisioni ed omissioni, di cui la scrivente non potrà essere mai e in nessun caso ritenuta responsabile. Si puntualizza inoltre che le semplificazioni possono comportare alcuni imprecisioni dovuti al tipo di calcolo, ad esempio non si specifica se un pagamento viene effettuato all'inizio o alla fine di un determinato anno, poiché un anno è considerato come un unico periodo. ! Attenzione: Anche se lo strumento visualizza dei messaggi di avvertimento relativi ai diversi limiti di input, non si può escludere che valori di input errati possano portare a risultati finali inesatti. La corretta valutazione delle conseguenze di determinate ipotesi è responsabilità dell'utilizzatore dello strumento inoltre non si assume alcun obbligo né si accetta alcuna responsabilità che possa derivare da eventuali errori, imprecisioni o omissioni. Processo di calcolo: Sulla base dell'effettiva richiesta di calore annua, vengono calcolati l'efficienza annua della rete e degli impianti di riscaldamento, il consumo di combustibile e i relativi costi annui Formule: nello strumento sono visibili le formule e i calcoli. Si ricorda che apportare modifiche allo strumento può causare errori e quindi generare risultati non corretti. Analisi di sensibilità / analisi What-if: Variando i parametri di input e memorizzando i singoli risultati dell'analisi della redditività, è possibile valutare l'incidenza dei singoli parametri sulla sostenibilità finanziaria dell'impianto
B3: Nel calcolo dei flussi finanziari annuali si considerano sull'anno, gli andamenti durante l'arco dell'anno non vengono considerati. L'investimento VAN inizia in anticipo di un periodo sulla data del flusso di cassa immesso come valore1 e termina con l'ultimo flusso di cassa dell'elenco. Il calcolo VAN si basa sui flussi di cassa futuri.
A4: 100 | B4: Tutti gli importi in euro devono essere indicati senza l'imposta sul valore aggiunto (IVA). I campi di input sono evidenziati in giallo chiaro.
A5: 101 | B5: Avvertenze: Un breve testo esplicativo appare nel campo Avvertenze se nel foglio di input vengono introdotti valori non plausibili (ad es. efficienza = zero o simili).
A6: 102 | B6: Inserire il prezzo del calore e il consumo di calore. Queste componenti di reddito assieme ai contributi e alle spese di allacciamento incidono sulla determinazione dei risultati economico-finanziari di un impianto di riscaldamento a biomassa.
A7: 103 | B7: Vendita totale di calore in MWh/a prevista a fine progetto, corrisponde alla vendita del 100% del calore disponibile [107]. Il consumo di combustibile è calcolato in base all'efficienza annua della rete di teleriscaldamento e all'efficienza annua della caldaia.
A8: 104 | B8: Consumo interno di calore. Ossia quantità di calore utilizzata e non venduta, ad es. calore per la sala di controllo del riscaldamento, rampa di sbrinamento, ecc.
A9: 105 | B9: Efficienza annuale della/e caldaia/e a biomassa. Il rapporto tra la quantità di calore generato e la quantità di combustibile utilizzato. NON corrisponde all'efficienza istantanea ottenibile della caldaia! Ipotesi troppo ottimistiche possono portare a considerare un consumo di combustibile significativamente inferiore e quindi a ipotizzare costi del combustibile troppo bassi.
A10: 106 | B10: Efficienza annua della rete di teleriscaldamento (40 ... 98%). Il rapporto tra il calore venduto (distribuito) dalla rete e il calore immesso nella rete.
A11: 107 | B11: Andamento della vendita di calore espresso come % della vendita totale di calore annua definita in [103]. Queste informazioni possono essere utilizzate per considerare gli ampliamenti della rete che si svolgeranno in più fasi nel corso dei primi 3 anni. Al terzo anno, una percentuale del 100% deve essere raggiunta!
A12: 108 | B12: Aumento annuo della vendita di calore della rete di teleriscaldamento dopo il 3° anno. Grazie ad un ampliamento/maggiore densità importante della rete (collegamento di nuovi utenti/clienti), il consumo di calore può superare il 100 % del valore originariamente considerato per il terzo anno in questo caso qualsiasi investimento necessario dovrà essere inserito nella colonna "Esborsi aggiuntivi" nel foglio "Risultati" in corrispondenza dell'anno in cui viene effettuato.
A13: 109 | B13: Prezzo netto di vendita del calore. Può essere calcolato nel foglio "Costo del calore", il prezzo si compone di una quota fissa, una relativa alla potenza (€/kW) disponibile e l'altra per il servizio di misure e gestione contatore (€/a) più una quota variabile (energia) che dipende dalla quantità di energia (€/kWh) fornita, nel foglio di calcolo i valori computati sono su base annuale.
A14: 110 | B14: Adeguamento del prezzo medio annuo di vendita del calore in percentuale: se collegato a un indice dei prezzi al consumo standard, sono attesi tassi compresi tra l'1% e il 3%. (Questo non dovrebbe essere superiore ai valori di adeguamento per i costi dell'elettricità, del combustibile o del personale).
A15: 111 | B15: Spese di connessione, se la sottostazione di trasferimento del calore dalle tubazioni del sistema di teleriscaldamento all'utenza connessa è di proprietà del gestore, l'utente dovrà pagare un contributo/spesa una tantum a copertura dei costi di connessione (tubazioni, scambiatore, interventi impiantistici ecc).
A16: 112 | B16: Altri ricavi (ad esempio dalla cogenerazione )
A17: 113 | B17: Adeguamento medio annuo dei prezzi (ad es. indice dei prezzi al consumo, dei vettori energetici ecc)
A18: 114 | B18: Anno di riferimento per gli investimenti - utilizzato come anno n.0 per la valutazione economica-finanziaria
A19: 120 | B19: Prezzo del combustibile e costi operativi, voci di spesa significative per un impianto di riscaldamento a biomassa.
A20: 121 | B20: Prezzo della biomassa in € per MWh di contenuto energetico.
A21: 122 | B21: Percentuale di vendita di calore prodotto con la biomassa. 100% indica che la produzione è coperta interamente da biomassa, 90% indica che il 10% del fabbisogno annuo di calore è prodotto con combustibili fossili.
A22: 123 | B22: Adeguamento del prezzo medio annuo del calore da biomassa ad un indice dei prezzi di vettori energetici fossili.
A23: 124 | B23: Prezzo dei combustibili fossili utlizzati (es. gasolio o gas naturale). Se viene utilizzato un combustibile non fossile per coprire i picchi, deve esere indicato qui
A24: 125 | B24: Adeguamento del prezzo medio annuo del combustibile fossile in percentuale (analisi trimestrale del sistema energetico italiano dell'ENEA)
A25: 126 | B25: Consumo specifico di energia elettrica in kWh elettrici per MWh di calore venduto. Questo valore dovrebbe includere tutti i principali componenti elettrici dell'impianto di riscaldamento (caldaie, pompe, pompe di rete, ventilatore, precipitatore elettrico, ...).
A26: 127 | B26: Prezzo dell'elettricità in € per kWhe della società di fornitura di energia elettrica
A27: 128 | B27: Adeguamento del prezzo medio annuo dell'elettricità (percentuale/anno)
A28: 130 | B28: Costi del personale per la gestione della centrale termica e della rete (euro/anno)
A29: 131 | B29: Adeguamento del costo medio annuo del personale
A30: 132 | B30: Costi annui per consulenza fiscale e tenuta contabilità
A31: 133 | B31: Adeguamento del costo medio annuo per la consulenza fiscale e tenuta contabilità
A32: 134 | B32: Costi di manutenzione annui
A33: 135 | B33: Adeguamento del costo medio annuo per la manutenzione
A34: 136 | B34: Costi annui per canoni di locazione/leasing
A35: 137 | B35: Adeguamento costi annui per canoni di locazione/leasing
A36: 138 | B36: Altri costi annui (assicurazione, homepage, telefono, imposte, ... ecc.)
A37: 139 | B37: Adeguamento del prezzo medio annuo per "altri costi".
A38: 140 | B38: Limite superiore dell'aumento annuo della vendita di calore. Questo valore viene utilizzato per limitare la crescita della vendita di calore utilizzando come riferimento l'anno n.3. L'aumento massimo deve essere limitato considerando i vincoli locali, in modo che la vendita di calore dopo il quarto anno non cresca in modo illimitato. Ad esempio, se la vendita di calore massima possibile nella zona (supponendo che tutti gli edifici vengano collegati alla rete) è pari al 110% della vendita di calore definita all'anno 3, questo fattore deve essere impostato al 10% (o inferiore).
A39: 150 | B39: Esborso per l'impianto di riscaldamento (investimento)
A40: 151 | B40: Considerate qui solo i gli investimenti ammissibili a contributi pubblici (contributo in C/C, incentivi ecc)
A41: 152 | B41: Esborso finanziario relativo all'investimento nella rete di teleriscaldamento.
A42: 153 | B42: Spesa per la costruzione del locale caldaia e per lo stoccaggio del cippato
A43: 154 | B43: Costi per la progettazione dell'impianto e della rete di teleriscaldamento e, se applicabile, per lo sviluppo di un programma di gestione della qualità (ad es. qm heizwerke).
A44: 155 | B44: Spese non ammissibili per contributi e incentivi (veicoli, ecc.) - secondo gli schemi di finanziamento in essere
A45: 156 | B45: Esborso totale dell'investimento, calcolato in base alle spese ammissibili e non ammissibili. L'importo che il cliente (proprietario dell'impianto) deve inizialmente spendere per realizzare l'impianto e la rete di teleriscaldamento.
A46: 160 | B46: Fondi propri disponibili per il progetto, quota di finanziamento di terzi , parte coperta dal contributo pubblico e % di copertura con contributo pubblico dell'investimento totale. Si raccomanda di raggiungere una quota minima di capitale proprio del 10-30%, se possibile. Quanto più alta è la quota di capitale proprio, tanto minore sarà il ricorso a capitali di terzi (prestito) e di conseguenza minori saranno il servizio del debito (commissioni e interessi passivi) e le uscite finanziarie relative al rimborso delle quote capitale sul prestito.
A47: 161 | B47: Mezzi propri nella forma di capitale sociale sottoscritto da parte del proprietario e/o dei soci.
A48: 162 | B48: Durata del mutuo, si ipotizza un tasso costante per l'intera durata del prestito. Si dovrebbe concordare con la banca un durata che fosse la più lunga possibile (preferibilmente 20, 25 anni) e prevedere contrattualmente la possibilità di estinguere il mutuo in anticipo senza oneri aggiunti. In questo modo le rate da rimborsare restano basse e in caso di maggiori entrate si può estinguere anticipatamente il mutuo senza oneri aggiuntivi.
A49: 163 | B49: Tasso d'interesse medio lordo per l'intera durata del prestito (ad es. tasso d'interesse di riferimento (Euribor) + maggiorazione + costi aggiuntivi).
A50: 164 | B50: % di copertura con contributo (tasso di sussidio ipotizzato) delle spese ammissibili. Le spese ammissibili (investimento) moltiplicate per la % di copertura con contributo danno la somma totale del contributo concesso.
A51: 165 | B51: Anno in cui viene erogato il contributo (sussidio). Scegliere tenendo conto delle modalità operative degli schemi di finanziamento. Le pratiche per il riconoscimento del contributo vanno fatte il più velocemente possibile e dal momento che in attesa dell'erogazione del contributo la copertura finanziaria verrà fornita da un prestito di conseguenza più passa il tempo, più interessi si pagano.
A52: 166 | B52: Spuntare la casella di controllo se il contributo (sussidio) che viene erogato annualmente (cioè un contributo erogato su più anni o incentivi sulla produzione erogati su più anni). Cliccare per disattivare/attivare. Se attivata (segno di spunta visibile), il sussidio viene incluso nei calcoli. Il sussidio viene inserito nella colonna "Entrate supplementari / sussidio supplementare". Metodo di calcolo: importo base (anno1) + importo anni successivi + adeguamento annuale incentivo. Con queste informazioni dovrebbe essere possibile mappare le varie modalità di erogazione di contributi e incentivi.
A53: 167 | B53: Contributo : Importo al 1° anno.
A54: 168 | B54: Contributi/incentivi: Importo anni successivi
A55: 169 | B55: Contributi/incentivi: Adeguamento annuale incentivo
A56: 170 | B56: Il VAN (Valore Attuale Netto) rappresenta, in termini monetari, il valore creato o disperso dall’investimento effettuato nell’arco del periodo del contratto; è calcolato come la differenza tra il valore attuale dei flussi di cassa netti annuali (entrate-uscite monetarie nell'anno) meno l’impiego iniziale del capitale proprio.
A57: 171 | B57: Tasso di interesse utilizzato per calcolare il VAN Valore Attuale Netto. Nel caso di ricorso a capitali di terzi (finanziamento con debito) che sia almeno vicino al tasso d'interesse medio più alto richiesto dal mercato per finanziare operazioni simili
A58: 180 | B58: Valori calcolati: valori numerici che possono essere calcolati a partire dagli input precedenti e servono per controllare gli input e visualizzare il calcolo delle quantità di energia.
A59: 181 | B59: Quota percentuale della vendita di calore generata con combustibili fossili
A60: 182 | B60: La quantità di calore prodotto è calcolato considerando la quantità di calore venduto, la dispersione della rete e dall'autoconsumo dell'impianto
A61: 183 | B61: La quantità di combustibile utilizzato per la produzione di calore viene calcolata sulla base del calore da fornire e il rendimento medio della caldaia.
A62: 184 | B62: Il combustibile da biomassa utilizzato corrisponde alla quantità di calore generato con la biomassa. Il rimanente è generato da fonti fossili o da altre fonti di energia.
A63: 185 | B63: Il combustibile fossile utilizzato corrisponde alla quantità di calore generato con il combustibile fossile. La parte rimanente è generata con la biomassa.
A64: 186 | B64: Consumo di energia elettrica della centrale termica nell'anno n. 1 - Calcolato in base al consumo specifico di energia elettrica per MWh di calore venduto.
A65: 190 | B65: Totale investimento: spese per l'impianto di riscaldamento, la rete di riscaldamento e gli investimenti aggiuntivi necessari.
A66: 191 | B66: Spese ammissibili per il contributo. Importo totale delle spese di investimento ammissibiliper il contributo/i. Sono calcolati utilizzando le posizioni 151 - 155.
A67: 192 | B67: Il contributo (sussidio) è calcolato in base alle spese ammissibili e alla % di copertura con contributo (tasso di sussidio ipotizzato)
A68: 193 | B68: Valore massimo del prestito effettuato dalla banca (prestito senior + prestito ponte) prima dell'erogazione del contributo per cofinanziare l'investimento negli anni 1-5, valore cella n.165.
A69: 194 | B69: Prestito senior, mutuo principale di lungo periodo (non comprende il prestito ponte in attesa di incassare il contributo)
A70: 195 | B70: Interessi su prestiti nel primo anno.
A71: 196 | B71: Rata annuale mutuo
A72: 197 | B72: Rata annuale prestito ponte fino all'erogazione del sussidio, la rata si riferisce al "prestito ponte" che si estingue con l'erogazione del contributo. Per tutta la durata del prestitto ponte si sosteranno extra costi per il servizio del debito.
B73: Foglio aggiuntivo Prezzo del calore: Questo foglio viene utilizzato per calcolare il prezzo medio di vendita del calore secondo il tipo di cliente (privato, commerciale, grande consumatore).
A74: 401 | B74: Casella di controllo. Cliccare sulla casella per attivarla/disattivarla; se attivata (segno di spunta visibile), si ottiene il prezzo dopo aver inserito una serie di valori (tipo cliente, consumo, potenza ecc) che vengono elaborti nel foglio di calcolo "Costo del calore"
A75: 402 | B75: Casella di controllo. Cliccare sulla casella per attivarla / disattivarla; se attivata (segno di spunta visibile), il prezzo di vendita del calore tiene conto dei diversi livelli di consumo del cliente applicando la scontistica secondo i livelli e le % impostate nel foglio di calcolo
A76: 403 | B76: Prezzo di vendita, se non viene spuntata la casella 401, allora il valore viene preso direttamente dalla 414 ( prezzo medio unico del calore predefinito). Se il calcolo invece tiene conto del tipo di cliente, consumo, potenza ecc allora si spunta la cella 401 e se si vuole anche applicare la scontistica per i diversi livelli di consumo si deve spuntare anche la cella 402.
A77: 404 | B77: Prezzo profilato per tipologia di cliente, tiene conto del tipo di cliente, consumo, potenza, servizio misure e getione contatore che vengono inserite ed elborate nel foglio di calcolo "Costo del calore"
A78: 405 | B78: Tipo di cliente 1 - corrisponde a clienti privati o piccoli clienti con un consumo di calore molto basso e con un fabbisogno di potenza installata molto basso, per esempio case unifamiliari, appartamenti singoli, piccoli edifici per uffici, ecc.
A79: 406 | B79: Coefficiente quota potenza, espressa in €/kW, moltiplicato per la potenza installata kW determina la somma che il cliente deve corrispondere per il fatto che allo stesso è garantito il trasferimento di una certa potenza termica definita nel contratto di fornitura.
A80: 407 | B80: Servizio misure e gest. Contatore, prezzo per la gestione contatore e servizio misure espresso in € all'anno
A81: 408 | B81: Prezzo energia fornita, prezzo per l'energia fornita espresso in € per kWh di calore venduto
A82: 409 | B82: Potenza media installata per singolo tipo di utenza/cliente (1-3). Questa deve essere determinata correttamente come media di tutti i clienti appartenenti alla medesima tipologia, in modo che il calcolo del prezzo del calore risultante fornisca un risultato corretto.
A83: 410 | B83: Consumo medio di calore per tipo di consumatore (1-3). Questo deve essere determinato correttamente come media su tutti i clienti appartenenti alla medesima tipologia, in modo che il calcolo del prezzo del calore fornisca un risultato corretto.
A84: 411 | B84: Prezzo del calore per tipo di cliente/utenza 1-3.
A85: 412 | B85: Tipo di cliente 2 - corrisponde a clienti con un consumi e potenze installate medie, ad es. imprese commerciali, grandi edifici per uffici, ecc.
A86: 413 | B86: Tipo di cliente 3 - corrisponde a clienti con un consumi e potenze installate alte, ad es. impianti industriali, grandi edifici pubblici, ospedali …
A87: 414 | B87: Prezzo medio unico, prezzo medio ponderato con le quantità delle tre tipologie di cliente previste.
A88: 415 | B88: Sconti sul prezzo, vanno definiti e inseriti gli scaglioni con i relativi sconti (nella forma di coefficienti di riduzione del prezzo). Si noti che lo sconto è concesso ai clienti-cluster, cioè ai tipi di clienti da 1 a 3, e non ai singoli clienti
A89: 416 | B89: Scaglione 1 - Inserire il valore relativo all'estremo superiore "fino a kWh/a" e il relativo coefficiente di adeguamento del prezzo in percentuale che in questo caso pari al 100% visto che sul primo scaglione non c'è sconto. Il prezzo per consumi che rientrano nel primo scaglione sono quindi pieni.
A90: 417 | B90: Scaglione 2 - per i consumi che rientrano in questo scaglione inserire il coefficiente di adeguamento prezzo % pari al prezzo pieno 100% MENO lo sconto % previsto per questo scaglione.
A91: 418 | B91: Scaglione 3 - per i consumi che rientrano in questo scaglione inserire il coefficiente di adeguamento prezzo % pari al prezzo pieno 100% MENO lo sconto % previsto per questo scaglione.
A92: 419 | B92: Scaglione 4 - per i consumi che rientrano in questo scaglione inserire il coefficiente di adeguamento prezzo % pari al prezzo pieno 100% MENO lo sconto % previsto per questo scaglione.
A93: 420 | B93: Scaglione 5 - per i consumi che rientrano in questo scaglione inserire il coefficiente di adeguamento prezzo % pari al prezzo pieno 100% MENO lo sconto % previsto per questo scaglione.
A94: 500 | B94: Foglio "Commenti" permette di commentare/spiegare i risultati dell'attuale valutazione sulla redditività economica e i dati inseriti in modo che sia possibile aggiungere ulteriori informazioni ai valori di input e ai risultati calcolati.
A95: 900 | B95: Scheda "Risultati": sintesi dell'analisi finanziaria semplificata del progetto che si sviluppa su un periodo di 25 anni. Si ipotizza che a regime i costi e i ricavi abbiano una manisfestazione finanziaria nell'anno considerato; inoltre gli importi riportati sono al netto d'iva. I movimenti finanziari collegati al CCN (Capitale Circolante Netto) e i flussi collegati alle dinamiche fiscali non vengono riportati.
A96: 901 | B96: Sintesi dei costi operativi
A97: 905 | B97: Ricavi: Tutti i ricavi della centrale termica sono relativi all'anno di esercizio 1 e al 100% della potenza allacciata. L'indice di adeguamento dei prezzi indicato è un indice misto ponderato di tutti i ricavi.
A98: 910 | B98: I valori attuali netti sono calcolati per i periodi 1-10, 1-15, 1-20, 1-25. In ogni caso, il VAN non dovrebbe mai essere minore di zero, quando è uguale a zero vuol dire che l'operazione rende esattamente quanto il tasso di attualizzazione usato per il calcolo del VAN. Progetti con somme di investimento più ingenti non sono direttamente confrontabili con progetti con somme di investimento più contenute, in questo caso quindi possiamo confrontare i VAN relativi a periodi diversi perchè sono riferiti alla stesso progetto con il medesimo esborso iniziale.
A99: 920 | B99: Per quanto riguarda il calcolo del Valore Attuale Netto (VAN), le "entrate finanziarie" devono essere confrontate con le "uscite finanziarie" su base annuale.
A100: 930 | B100: Il progetto si sviluppa su 25 anni max
A101: 931 | B101: Vendita di calore assumendo come valore di riferimento un fattore del 100% del calore disponibile (vedi cella 103).
A102: 932 | B102: Uscite (pagamenti) per combustibile a biomassa.
A103: 933 | B103: Uscite (pagamenti) per combustibili fossili.
A104: 934 | B104: Uscite (pagamenti) per spese di personale, contabilità e consulenza.
A105: 935 | B105: Uscite (pagamenti) per l'energia elettrica.
A106: 936 | B106: Uscite (pagamenti) per spese di manutenzione
A107: 937 | B107: Esborsi aggiuntivi. Colonna per contenuto libero. Qui si possono prendere in considerazione altre spese, ad es. i costi di reinvestimento previsti, gli investimenti supplementari per gli ampliamenti successivi e gli investimenti dovuti a nuove derivazioni/allungamenti della rete a partire dall'anno n. 4 in poi.
A108: 938 | B108: Pagamenti per l'affitto di terreni e altre spese (ad es. assicurazione, telefono, spese amministrative ...)
A109: 939 | B109: Rata mutuo comprensiva di q.ta capitale e interessi, nel caso di contributi che riducono il debito residuo (rimborso debito), la rata del mututo viene ricalcolata
A110: 940 | B110: Totale degli esborsi annuali, somma delle colonne 2 - 9
A111: 941 | B111: Entrate derivanti dalla vendita di calore.
A112: 942 | B112: Entrate, contributi pubblici una tantum a copertura dei costi allacciamento
A113: 943 | B113: Incentivi annuali, visto che nel folgio "Dati di ingresso" sono riportati i dati relativi agli incentivi, le caselle sono linkate al foglio succitato. E' possibile anche inserire liberamente gli incentivi a mano oppure aggiungere eventuali altri incentivi sommandoli alla formula presente nella cella delle specifiche entrate ulteriori per l'anno considerato
A114: 944 | B114: Altri ricavi da altre fonti quali vendite di carburanti, ecc.
A115: 945 | B115: Totale entrate, somma delle colonne 11 - 1 4.
A116: 946 | B116: Flussi finanziari netti annuali (tot. entrate - tot. uscite ) da usare per il calcolo del VAN
A117: 947 | B117: Flussi di cassa cumulativi, il primo anno in cui il flusso cumulativo è ≥0 corrisponde praticamente all'anno di rientro semplice (payback sull'investimento iniziale)
A118: 948 | B118: Il debito totale ( mutuo+ prestito ponte eventuale) si estinguerà più velocemente della durata complessiva dello stesso nel caso di contributi per l'investimento, perché una volta incassato il contributo, si abbassa il debito residuo per la parte incassata (che spesso viene girata direttamente alla banca per estinguere il prestito ponte)
A119: 949 | B119: Contributo, importo del finanziamento pubblico erogato nell'anno esimo, che va a stornare li debito residuo (abbassanadolo) in seguito al quale si ridetermina anche la rata da pagare alla banca
A120: 950 | B120: Sovvenzione (informativa) - Importo del finanziamento pubblico e quando sarà erogato (anni 1-5)
A121: 980 | B121: Grafici delle principali grandezze finanziarie su 25 anni
A122: 981 | B122: Diagramma del Valore Attuale Netto (VAN) per i periodi 1-10, 1-15, 1-20 e 1-25.
B124: Unità di misura
B125: MWh = megawattora termico
B126: kWh = kilowattora termico
B127: a = anno
B128: € = euro
B129: % = percentuale
B130: MWhel = megawattora elettrico
B131: kWhel = kilowattora elettrico
B133: Abbreviazioni
B134: cur. = corrente
B135: DH = teleriscaldamento
B136: DHN = rete di teleriscaldamento
B137: VAN = Valore Attuale Netto
B138: PY = anno precedente
B139: sur.= eccendeza
B140: VAT = IVA

Sheet Dati di ingresso
B1: Calcolo della redditività economica - Dati di input
B4: Titolo del progetto | F4: Esempio di progetto
A6: 100 | B6: (IVA esclusa) | F6: cella di input
A8: 101 | B8: Avvertenze | E8: =IF(AD8>10,"Mehr als 10 Warnungen oder Fehler!",IF(AD8>0,AE8,"")) ->  | AD8: =SUM(AB11:AD131) -> 0 | AE8: =AE11&AE27&AE34&AE45&AE60&AE69&AE74 -> 
A10: 102 | B10: Quantità di calore, prezzo del calore e spese di allacciamento | Z10: Min | AA10: Max | AB10: Undercut | AC10: Surpass | AD10: S. Error | AE10: Attenzione | AF10: SumSp | AG10: MinTesto | AH10: MaxTesto | AI10: AltroTesto
AE11: =AE12&AE13&AE14&AE17&AE18&AE19&AE23&AE26&AE15&AE20&AE24&AE21 ->  | AF11: x
A12: 103 | M12: Vendita annuale di calore | N12: 7750 | Q12: MWh/a | Z12: 10 | AA12: 9999999999 | AB12: =IF($N12<Z12,1,0) -> 0 | AC12: =IF($N12>AA12,1,0) -> 0 | AD12: 0 | AE12: =IF(AB12=1,AG12,IF(AC12=1,AH12,IF(AD12=1,AI12,""))) ->  | AG12: La quantità di calore venduto è troppo piccola! | AH12: La quantità di calore venduto è troppo grande!
A13: 104 | M13: Consumo di calore interno | N13: 0 | Q13: MWh/a | Z13: 0 | AA13: 9999999999 | AB13: =IF($N13<Z13,1,0) -> 0 | AC13: =IF($N13>AA13,1,0) -> 0 | AD13: =IF(InternalHeatCons>HeatQuantitySold,1,0) -> 0 | AE13: =IF(AB13=1,AG13,IF(AC13=1,AH13,IF(AD13=1,AI13,""))) ->  | AG13: Il consumo di calore interno è negativo! | AH13: Il consumo di calore interno è troppo alto! | AI13: Il consumo di calore interno è maggiore della quantità di calore venduta!
A14: 105 | M14: Efficienza annua della caldaia o delle caldaie a biomassa | N14: 85 | Q14: % | Z14: 40 | AA14: 98 | AB14: =IF($N14<Z14,1,0) -> 0 | AC14: =IF($N14>AA14,1,0) -> 0 | AD14: =IF(InternalHeatCons>HeatQuantitySold,1,0) -> 0 | AE14: =IF(AB14>0,AG14,"")&IF(AC14>0,AH14,"")&IF(AD14>0,AI14,"") ->  | AG14: Il tasso di utilizzo annuale della caldaia(e) a biomassa è inferiore al 40%. | AH14: Il tasso di utilizzo annuale della caldaia a biomassa è superiore al 98 %!
A15: 106 | M15: Efficienza annua della rete di teleriscaldamento (TLR) | N15: 70 | Q15: % | Z15: 40 | AA15: 99 | AB15: =IF($N15<Z15,1,0) -> 0 | AC15: =IF($N15>AA15,1,0) -> 0 | AD15: =IF(N15="",1,0) -> 0 | AE15: =IF(AB15>0,AG15,"")&IF(AC15>0,AH15,"")&IF(AD15>0,AI15,"") ->  | AG15: Il tasso di utilizzo annuale della rete di teleriscaldamento è troppo basso! | AH15: Il tasso di utilizzo annuale della rete di teleriscaldamento è troppo alto! | AI15: Il tasso di utilizzo annuale della rete non è specificato!!
A17: 107 | M17: Andamento della vendita di calore - anno 1 | N17: 60 | Q17: % della vendita totale di calore annuale | Z17: 0 | AA17: 100 | AB17: =IF($N17<Z17,1,0) -> 0 | AC17: =IF($N17>AA17,1,0) -> 0 | AD17: =IF(N17="",1,0) -> 0 | AE17: =IF(AB17>0,AG17,"")&IF(AC17>0,AH17,"")&IF(AD17>0,AI17,"") ->  | AG17: La vendita di calore del primo anno è troppo bassa
M18: Andamento della vendita di calore - anno 2 | N18: 80 | Q18: % della vendita totale di calore annuale | Z18: 1 | AA18: 100 | AB18: =IF($N18<Z18,1,0) -> 0 | AC18: =IF($N18>AA18,1,0) -> 0 | AD18: =IF(ConsFactor_y2<ConsFactor_y1,1,0) -> 0 | AE18: =IF(AB18>0,AG18,"")&IF(AC18>0,AH18,"")&IF(AD18>0,AI18,"") ->  | AG18: La vendita di calore del secondo anno è troppo bassa | AH18: Il fattore di consumo di calore del secondo anno è troppo alto | AI18: Il fattore di consumo di calore del secondo anno è inferiore a quello del primo anno
M19: Andamento della vendita di calore - anno 3 | N19: 100 | Q19: % della vendita totale di calore annuale | Z19: 2 | AA19: 100 | AB19: =IF($N19<Z19,1,0) -> 0 | AC19: =IF($N19>AA19,1,0) -> 0 | AD19: =IF(ConsFactor_y3<ConsFactor_y2,1,0) -> 0 | AE19: =IF(AB19>0,AG19,"")&IF(AC19>0,AH19,"")&IF(AD19>0,AI19,"") ->  | AG19: La vendita di calore del terzo anno è troppo bassa | AH19: L'andamento della vendita di calore del terzo anno è troppo alto | AI19: Il fattore di consumo di calore del terzo anno è inferiore a quello del secondo anno
A20: 108 | M20: Aumento annuo della vendita di calore a partire dal 4° anno | N20: 0 | Q20: % | Z20: 0 | AA20: 5 | AB20: =IF($N20<Z20,1,0) -> 0 | AC20: =IF($N20>AA20,1,0) -> 0 | AD20: =IF(ConsFactor_y4onwards="",1,0) -> 0 | AE20: =IF(AB20>0,AG20,"")&IF(AC20>0,AH20,"")&IF(AD20>0,AI20,"") ->  | AG20: L'aumento della vendita di calore del quarto anno e successivi è negativo! | AH20: L'aumento annuale della vendita di calore dal quarto anno in poi è troppo alto! | AI20: L'aumento del fattore di consumo di calore dal quarto anno in poi non è definito
A21: 140 | M21: Limite superiore dell'aumento annuo della vendita di calore | N21: 16 | Q21: % | Z21: 0 | AA21: 100 | AB21: =IF($N21<Z21,1,0) -> 0 | AC21: =IF($N21>AA21,1,0) -> 0 | AD21: =IF(ConsFactorMax="",1,0) -> 0 | AE21: =IF(AB21>0,AG21,"")&IF(AC21>0,AH21,"")&IF(AD21>0,AI21,"") ->  | AG21: Il limite superiore dell'aumento annuo della vendita di calore (vedi cella 140) è negativo | AH21: Il limite superiore del fattore di consumo di calore (vedi cella 140) è troppo alto | AI21: Il limite superiore del fattore di consmuo di calore (vedi cella 140) non è definito
A23: 109 | I23: Prezzo netto di vendita del calore | N23: 65 | Q23: €/MWh | S23: =DeterminedHeatPrice -> 57.21045455 | U23: €/MWh | Z23: 0 | AA23: 1000 | AB23: =IF($N23<Z23,1,0) -> 0 | AC23: =IF($N23>AA23,1,0) -> 0 | AD23: =IF(HeatSalesPrice<0,1,0) -> 0 | AE23: =IF(AB23>0,AG23,"")&IF(AC23>0,AH23,"")&IF(AD23>0,AI23,"") ->  | AG23: Il prezzo netto di vendita di calore è molto basso | AH23: Il prezzo netto di vendita del calore è troppo alto | AI23: Il prezzo netto di vendita del calore è negativo! | AJ23: Il prezzo netto di vendita del calore è negativo!
A24: 110 | M24: Adeguamento annuale del prezzo di vendita del calore | N24: 2.5 | P24: 0.5 | Q24: % | Z24: 0 | AA24: 10 | AB24: =IF($N24<Z24,1,0) -> 0 | AC24: =IF($N24>AA24,1,0) -> 0 | AD24: 0 | AE24: =IF(AB24>0,AG24,"")&IF(AC24>0,AH24,"")&IF(AD24>0,AI24,"") ->  | AG24: Si presume che l'adeguamento annuale del prezzo di vendita del calore sia inferiore al 10% | AH24: L'adeguamento annuale del prezzo di vendita del calore è troppo elevato
A26: 111 | M26: (Contributo una tantum per la connessione alla rete di teleriscaldamento) Anno 1-3 | N26: 350000 | Q26: € | Z26: 0 | AA26: =TotalInvestment -> 2355000 | AB26: =IF($N26<Z26,1,0) -> 0 | AC26: =IF($N26>AA26,1,0) -> 0 | AD26: 0 | AE26: =IF(AB26>0,AG26,"")&IF(AC26>0,AH26,"")&IF(AD26>0,AI26,"") ->  | AG26: The connection fees (Building costs subsidy) are negativ! | AH26: The connection fees (Building costs subsidy) exceed the total investment (compare pos. 111 with pos. 156)
AE27: =AE28&AE29&AE31 ->  | AF27: x
A28: 112 | M28: Altri ricavi annui | N28: 0 | Q28: €/a | Z28: 0 | AA28: 9999999999 | AB28: =IF($N28<Z28,1,0) -> 0 | AC28: =IF($N28>AA28,1,0) -> 0 | AD28: 0 | AE28: =IF(AB28>0,AG28,"")&IF(AC28>0,AH28,"")&IF(AD28>0,AI28,"") ->  | AG28: Gli "altri ricavi annui" sono negativi! | AH28: Gli "altri ricavi annui" sono troppo alti!
A29: 113 | M29: Adeguamento del prezzo medio degli "altri ricavi annui". | N29: 9.9 | Q29: % | Z29: 0 | AA29: 10 | AB29: =IF($N29<Z29,1,0) -> 0 | AC29: =IF($N29>AA29,1,0) -> 0 | AD29: 0 | AE29: =IF(AB29>0,AG29,"")&IF(AC29>0,AH29,"")&IF(AD29>0,AI29,"") ->  | AG29: L'adeguamento del prezzo degli "altri ricavi annui" è negativo! | AH29: L'adeguamento del prezzo degli "altri ricavi annui" è troppo alto!
A31: 114 | M31: Inizio progetto | N31: 2009 | Z31: 2000 | AA31: 2100 | AB31: =IF($N31<Z31,1,0) -> 0 | AC31: =IF($N31>AA31,1,0) -> 0 | AD31: 0 | AE31: =IF(AB31>0,AG31,"")&IF(AC31>0,AH31,"")&IF(AD31>0,AI31,"") ->  | AG31: Si presume che la data di inizio progetto sia successiva all'anno 2000. | AH31: Si presume che la data di inizio progetto sia precedente all'anno 2100
A33: 120 | B33: Prezzo del combustibile, costi di esercizio e di manutenzione
AE34: =AE35&AE36&AE37&AE38&AE39&AE41&AE42&AE43 ->  | AF34: x
A35: 121 | M35: Prezzo del combustibile da biomassa | N35: 26 | Q35: €/MWh | Z35: 0 | AA35: 100 | AB35: =IF($N35<Z35,1,0) -> 0 | AC35: =IF($N35>AA35,1,0) -> 0 | AD35: =IF(BiomassFuelPrice<0,1,0) -> 0 | AE35: =IF(AB35>0,AG35,"")&IF(AC35>0,AH35,"")&IF(AD35>0,AI35,"") ->  | AG35: Si presume che il prezzo del combustibile da biomassa sia negativo | AH35: Il prezzo del combustibile da biomassa è troppo alto
A36: 122 | M36: Quota di calore prodotto con la biomassa | N36: 95 | P36: 95 | Q36: % | Z36: 70 | AA36: 100 | AB36: =IF($N36<Z36,1,0) -> 0 | AC36: =IF($N36>AA36,1,0) -> 0 | AD36: 0 | AG36: La quota di calore prodotto con la biomassa è troppo bassa | AH36: La quota di calore prodotto con la biomassa è troppo alta
A37: 123 | M37: Adeguamento annuo del prezzo del combustibile da biomassa | N37: 2 | Q37: %/a | Z37: 0 | AA37: 5 | AB37: =IF($N37<Z37,1,0) -> 0 | AC37: =IF($N37>AA37,1,0) -> 0 | AD37: 0 | AG37: L'adeguamento del prezzo del combustibile da biomassa ipotizzato è negativo! | AH37: L'adeguamento del prezzo del combustibile da biomassa ipotizzato è molto alto
A38: 124 | M38: Prezzo del combustibile fossile | N38: 56 | Q38: €/MWh | Z38: 30 | AA38: 300 | AB38: =IF($N38<Z38,1,0) -> 0 | AC38: =IF($N38>AA38,1,0) -> 0 | AD38: =IF(FossilFuelPrice<BiomassFuelPrice,1,0) -> 0 | AG38: Il prezzo del combustibile fossile è troppo basso | AH38: Il prezzo del combustibile fossile stimato è alto | AI38: Il prezzo del combustibile fossile è più basso del prezzo del combustibile da biomassa
A39: 125 | M39: Adeguamento annuo del prezzo dei combustibili fossili | N39: 5 | Q39: %/a | Z39: 0 | AA39: 10 | AB39: =IF($N39<Z39,1,0) -> 0 | AC39: =IF($N39>AA39,1,0) -> 0 | AD39: =IF(FossilFuelPriceTrend<BiomassFuelPriceTrend,1,0) -> 0 | AG39: L'adeguamento del prezzo del combustibile fossile è stato stimato essere negativo | AH39: L'adeguamento del prezzo dei combustibili fossili è alto | AI39: L'adeguamento del prezzo dei combustibili fossili è inferiore al prezzo del combustibile da biomassa
A41: 126 | M41: Consumo specifico di energia elettrica | N41: 10 | Q41: kWhel/MWhth | Z41: 2 | AA41: 20 | AB41: =IF($N41<Z41,1,0) -> 0 | AC41: =IF($N41>AA41,1,0) -> 0 | AD41: =IF(SpecificElectCons=0,1,0) -> 0 | AG41: Il consumo specifico di energia elettrica è stato stimato molto basso | AH41: Il consumo specifico di energia elettrica è stato stimato molto alto | AI41: Il consumo specifico di energia elettrica è stato settato a 0
A42: 127 | M42: Prezzo dell'elettricità | N42: 0.13 | Q42: €/kWhel | Z42: 0.004 | AA42: 0.8 | AB42: =IF($N42<Z42,1,0) -> 0 | AC42: =IF($N42>AA42,1,0) -> 0 | AD42: =IF(ElectricityPrice=0,1,0) -> 0 | AG42: Il prezzo dell'elettricità è stato stimato molto basso | AH42: Il prezzo dell'elettricità è stato stimato molto alto | AI42: Il prezzo dell'elettricità è stato settato a 0
A43: 128 | M43: Adeguamento annuo del prezzo dell'energia elettrica | N43: 5 | Q43: %/a | Z43: 1 | AA43: 10 | AB43: =IF($N43<Z43,1,0) -> 0 | AC43: =IF($N43>AA43,1,0) -> 0 | AD43: 0 | AG43: L'adeguamento del prezzo dell'energia elettrica è stato stimato molto basso | AH43: L'adeguamento del prezzo dell'energia elettrica è stato stimato molto alto
AE45: =AE46&AE47&AE48&AE49&AE50&AE52&AE53&AE54&AE56&AE57 ->  | AF45: x
A46: 130 | M46: Costo del personale | N46: 15000 | Q46: €/a | Z46: 0 | AA46: 999999 | AB46: =IF($N46<Z46,1,0) -> 0 | AC46: =IF($N46>AA46,1,0) -> 0 | AD46: 0 | AE46: =IF(AB46>0,AG46,"")&IF(AC46>0,AH46,"")&IF(AD46>0,AI46,"") ->  | AG46: Il costo annuale del personale è molto basso | AH46: Il costo annuale del personale è troppo alto
A47: 131 | M47: Adeguamento annuo del costo del personale | N47: 2 | Q47: % | Z47: 0 | AA47: 10 | AB47: 0 | AC47: 0 | AD47: 0 | AG47: L'adeguamento annuo del costo del personale è stato stimato molto basso | AH47: L'adeguamento annuo del costo del personale è stato stimato molto alto
A48: 132 | M48: Costi di contabilità e di consulenza (fiscale) | N48: 0 | Q48: €/a | Z48: 0 | AA48: 999999 | AB48: 0 | AC48: 0 | AD48: 0 | AG48: I costi di contabilità e consulenza sono molto bassi | AH48: I costi annuali di contabilità e consulenza sono molto alti
A49: 133 | M49: Adeguamento annuo dei costi di contabilità e di consulenza (fiscale) | N49: 2 | Q49: % | Z49: 0 | AA49: 10 | AB49: 0 | AC49: 0 | AD49: 0 | AG49: L'adeguamento dei costi di contabilità e di consulenza è stato stimato molto basso | AH49: L'adeguamento dei costi di contabilità e di consulenza è stato stimato molto alto
A50: 134 | M50: Costi di manutenzione | N50: 9000 | Q50: €/a | Z50: 0 | AA50: 999999 | AB50: 0 | AC50: 0 | AD50: 0 | AG50: I costi annuali per la manutenzione sono molto bassi | AH50: I costi annuali per la manutenzione sono molto alti
A51: 135 | M51: Adeguamento annuo dei costi di manutenzione | N51: 2 | Q51: % | Z51: 0 | AA51: 10 | AB51: 0 | AC51: 0 | AD51: 0 | AG51: L'adeguamento del prezzo dei costi di manutenzione stimato è molto basso | AH51: L'adeguamento del prezzo dei costi di manutenzione stimato è molto alto
A53: 136 | M53: Costi annui per canoni di locazione/leasing fabbricati e/o terreni | N53: 3500 | Q53: €/a | Z53: 0 | AA53: =TotalInvestment/20 -> 117750 | AB53: =IF($N53<Z53,1,0) -> 0 | AC53: =IF($N53>AA53,1,0) -> 0 | AD53: 0 | AE53: =IF(AB53>0,AG53,"")&IF(AC53>0,AH53,"")&IF(AD53>0,AI53,"") ->  | AG53: Il costo annuale per l'affitto/diritto di superficie/ terreno è stato stimato molto basso | AH53: Il costo annuale per l'affitto/diritto di superficie/terreno è molto alto
A54: 137 | M54: Adeguamento annuo dei canoni di locazione/leasing fabbricati e/o terreni | N54: 2.5 | Q54: % | Z54: 0 | AA54: 5 | AB54: =IF($N54<Z54,1,0) -> 0 | AC54: =IF($N54>AA54,1,0) -> 0 | AD54: 0 | AE54: =IF(AB54>0,AG54,"")&IF(AC54>0,AH54,"")&IF(AD54>0,AI54,"") ->  | AG54: L'adeguamento del prezzo dei costi per l'affitto/diritto di superficie/terreno stimato è molto basso | AH54: L'adeguamento del prezzo dei costi per l'affitto/diritto di superficie/terreno stimato è molto alto
A56: 138 | M56: Altri costi (assicurazioni, ecc.) | N56: 1500 | Q56: €/a | Z56: 1000 | AA56: 999999 | AB56: =IF($N56<Z56,1,0) -> 0 | AC56: =IF($N56>AA56,1,0) -> 0 | AD56: =IF(OtherCosts=0,1,0) -> 0 | AE56: =IF(AB56>0,AG56,"")&IF(AC56>0,AH56,"")&IF(AD56>0,AI56,"") ->  | AG56: Il valore di "altri costi" è molto basso | AH56: Il valore di "altri costi" è molto alto | AI56: Il valore di "other costs" è stato stimato pari a 0
A57: 139 | M57: Adeguamento annuo dei prezzi degli altri costi | N57: 3 | Q57: % | Z57: 0.5 | AA57: 5 | AB57: =IF($N57<Z57,1,0) -> 0 | AC57: =IF($N57>AA57,1,0) -> 0 | AD57: 0 | AE57: =IF(AB57>0,AG57,"")&IF(AC57>0,AH57,"")&IF(AD57>0,AI57,"") ->  | AG57: L'adeguamento del prezzo stimato per "altri costi" è molto basso | AH57: L'adeguamento del prezzo stimato per "altri costi" è molto alto
A59: 150 | B59: Spese di investimento
A60: 151 | M60: Spese ammissibili per richiesta contributi | AE60: =AE61&AE62&AE63&AE64&AE65&AE66 ->  | AF60: x
M61: Installazione | N61: 520000 | Q61: € | Z61: 10000 | AA61: 999999999 | AB61: =IF($N61<Z61,1,0) -> 0 | AC61: =IF($N61>AA61,1,0) -> 0 | AD61: 0 | AE61: =IF(AB61>0,AG61,"")&IF(AC61>0,AH61,"")&IF(AD61>0,AI61,"") ->  | AG61: I costi di installazione sono molto bassi | AH61: I costi di installazione sono troppo alti
A62: 152 | M62: Rete di teleriscaldamento | N62: 1200000 | Q62: € | Z62: 10000 | AA62: 999999999 | AB62: 0 | AC62: 0 | AD62: 0 | AE62: =IF(AB62>0,AG62,"")&IF(AC62>0,AH62,"")&IF(AD62>0,AI62,"") ->  | AG62: I costi per la rete di teleriscaldamento sono molto bassi | AH62: I costi per la rete di teleriscaldamento sono troppo alti
A63: 153 | M63: Costruzione | N63: 450000 | Q63: € | Z63: 10000 | AA63: 999999999 | AB63: 0 | AC63: 0 | AD63: 0 | AE63: =IF(AB63>0,AG63,"")&IF(AC63>0,AH63,"")&IF(AD63>0,AI63,"") ->  | AG63: I costi di costruzione sono molto bassi | AH63: I costi di costruzione solo molto alti
A64: 154 | M64: Pianificazione e gestione della qualità | N64: 120000 | Q64: € | Z64: 1000 | AA64: 999999999 | AB64: 0 | AC64: 0 | AD64: =IF(PlanningQMCosts<TotalInvestment/50,1,0) -> 0 | AE64: =IF(AB64>0,AG64,"")&IF(AC64>0,AH64,"")&IF(AD64>0,AI64,"") ->  | AG64: I costi di pianificazione e gestione della qualità sono molto bassi | AH64: I costi di pianificazione e gestione della qualità sono molto alti | AI64: I costi di pianificazione e gestione della qualità ammontano a meno del 2% dell'investimento
A65: 155 | M65: Costi non ammissibili a contributi | N65: 65000 | Q65: € | Z65: 0 | AA65: 999999999 | AB65: 0 | AC65: 0 | AD65: 0 | AG65: I costi non ammissibili a contributo sono negativi | AH65: I costi non ammissibili a contributo sono molto alti
A66: 156 | M66: Totale investimenti | N66: =SUM(N61:P65) -> 2355000 | Q66: € | Z66: 0 | AA66: 999999999 | AB66: 0 | AC66: 0 | AD66: 0
A68: 160 | B68: Capitale proprio, finanziamento di terzi, contributo (sussidio)
AE69: =AE70&AE71&AE72 ->  | AF69: x
A70: 161 | M70: Mezzi propri | N70: 300000 | Q70: € | Z70: 0 | AA70: =TotalInvestment -> 2355000 | AB70: =IF($N70<=Z70,1,0) -> 0 | AC70: =IF($N70>AA70,1,0) -> 0 | AD70: 0 | AE70: =IF(AB70>0,AG70,"")&IF(AC70>0,AH70,"")&IF(AD70>0,AI70,"") ->  | AG70: Il patrimonio netto equivale a = 0 è negativo | AH70: Il patrimonio netto è superiore al costo totale dell'investimento
A71: 162 | M71: Durata del prestito | N71: 20 | Q71: years | Z71: 5 | AA71: 25 | AB71: =IF($N71<=Z71,1,0) -> 0 | AC71: =IF($N71>AA71,1,0) -> 0 | AD71: 0 | AE71: =IF(AB71>0,AG71,"")&IF(AC71>0,AH71,"")&IF(AD71>0,AI71,"") ->  | AG71: La durata del prestito è troppo breve | AH71: La durata del prestito non può superare i 25 anni!
A72: 163 | M72: Interessi medi lordi sui prestiti | N72: 5.5 | Q72: % | Z72: 3 | AA72: 10 | AB72: =IF($N72<=Z72,1,0) -> 0 | AC72: =IF($N72>AA72,1,0) -> 0 | AD72: 0 | AE72: =IF(AB72>0,AG72,"")&IF(AC72>0,AH72,"")&IF(AD72>0,AI72,"") ->  | AG72: Il tasso di interesse sul prestito indicato è molto basso | AH72: Il tasso di interesse sul prestito è molto alto
B74: Contributi e incentivi annuali | AE74: =AE76&AE77&AE80&AE81&AE85 ->  | AF74: x
M75: Contributo per agli investimenti | AG75: TRUE
A76: 164 | M76: % di finanziamento con contributo | N76: 30 | Q76: % | Z76: 0 | AA76: 60 | AB76: =IF($N76<Z76,1,0) -> 0 | AC76: =IF($N76>AA76,1,0) -> 0 | AD76: 0 | AE76: =IF(AB76>0,AG76,"")&IF(AC76>0,AH76,"")&IF(AD76>0,AI76,"") ->  | AG76: Il tasso di sovvenzione inserito è troppo basso | AH76: Il tasso di sovvenzione inserito è troppo alto
A77: 165 | M77: Anno di erogazione del contributo | N77: 5 | Q77: Year (1-5) | Z77: 1 | AA77: 5 | AB77: =IF($N77<Z77,1,0) -> 0 | AC77: =IF($N77>AA77,1,0) -> 0 | AD77: =IF(SubsidyDisbursementYear=0,1,IF(SubsidyDisbursementYear/(INT(SubsidyDisbursementYear))<>1,1,0)) -> 0 | AE77: =IF(AB77>0,AG77,"")&IF(AC77>0,AH77,"")&IF(AD77>0,AI77,"") ->  | AG77: La sovvenzione non può essere erogata prima del 1° anno! | AH77: La sovvenzione non può essere erogata dopo il 5° anno! | AI77: L'anno in cui la sovvenzione viene erogata deve coincidere con un anno specifico (anno 1, 2, 3, 4 o 5, cifre oltre la virgola non sono permesse).
A79: 166 | M79: Incentivi annuali | AG79: TRUE
A80: 167 | M80: Importo nel 1° anno | N80: 3500 | Q80: € | Z80: 0 | AA80: 999999999 | AB80: =IF($N80<Z80,1,0) -> 0 | AC80: =IF($N80>AA80,1,0) -> 0 | AD80: 0 | AE80: =IF(AB80>0,AG80,"")&IF(AC80>0,AH80,"")&IF(AD80>0,AI80,"") ->  | AG80: L'importo del sussidio in corso al 1° anno è negativo | AH80: L'importo del sussidio in corso al 1° anno è troppo alto
A81: 168 | M81: Importo anni successivi | N81: 1000 | Q81: € | Z81: 0 | AA81: 999999999 | AB81: =IF($N81<Z81,1,0) -> 0 | AC81: =IF($N81>AA81,1,0) -> 0 | AD81: 0 | AE81: =IF(AB81>0,AG81,"")&IF(AC81>0,AH81,"")&IF(AD81>0,AI81,"") ->  | AG81: Il valore dell'aumento annuale del sussidio è negativo | AH81: Il valore dell'aumento annuale del sussidio è molto alto
A82: 169 | M82: Adeguamento annuale incentivo | N82: 3 | Q82: % | Z82: 0 | AA82: 10 | AB82: =IF($N82<Z82,1,0) -> 0 | AC82: =IF($N82>AA82,1,0) -> 0 | AD82: 0 | AE82: =IF(AB82>0,AG82,"")&IF(AC82>0,AH82,"")&IF(AD82>0,AI82,"") ->  | AG82: L'aumento percentuale annuale del sussidio in corso è negativo | AH82: L'aumento percentuale annuale del sussidio è molto alto
A84: 170 | B84: Calcolo del valore attuale netto (VAN)
A85: 171 | M85: Tasso di interesse calcolo VAN | N85: 6 | Q85: % | Z85: 2 | AA85: 10 | AB85: =IF($N85<Z85,1,0) -> 0 | AC85: =IF($N85>AA85,1,0) -> 0 | AD85: =IF(SubsidyDisbursementYear=0,1,IF(SubsidyDisbursementYear/(INT(SubsidyDisbursementYear))<>1,1,0)) -> 0 | AE85: =IF(AB85>0,AG85,"")&IF(AC85>0,AH85,"")&IF(AD85>0,AI85,"") ->  | AG85: Il tasso di interesse stimato è molto basso | AH85: Il tasso di interesse stimato è molto alto
A88: 180 | B88: Valori calcolati
A90: 181 | M90: Percentuale di calore prodotto con combustibili fossili | N90: =100-ShareBiomass -> 5 | P90: 95 | Q90: %
A91: 182 | M91: Calore prodotto | N91: =HeatQuantitySold/UtilisationRateDHN*100+N13 -> 11071.42857 | P91: 95 | Q91: MWh
A92: 183 | M92: Combustibile utilizzato | N92: =N91/UtilisationRateBiomassBoiler*100 -> 13025.21008 | P92: 95 | Q92: MWh
A93: 184 | M93: Combustibile da biomassa utilizzato | N93: =N92*ShareBiomass/100 -> 12373.94958 | P93: 95 | Q93: MWh
A94: 185 | M94: Combustibile fossile utilizzato | N94: =N92*(ShareFossilFuels/100) -> 651.2605042 | P94: 95 | Q94: MWh
A95: 186 | M95: Costi per l'energia elettrica | N95: =SpecificElectCons*HeatQuantitySold*ElectricityPrice -> 10075 | Q95: €
A97: 190 | M97: Totale investimento | N97: =TotalInvestment -> 2355000 | Q97: €
A98: 191 | M98: Spese ammissibili per richiesta contributo | N98: =N66-NonEligibleCosts -> 2290000 | Q98: €
A99: 192 | M99: Contributo totale | N99: =IF(AG75,N98*SubsidyQuote/100,0) -> 687000 | Q99: €
A100: 193 | M100: Totale debito verso banche (prestito senior + ponte) | N100: =N66-Equity -> 2055000 | Q100: €
A101: 194 | M101: Prestito senior mutuo principale di lungo periodo | N101: =LoanAmount-SubsidyAmount -> 1368000 | Q101: €
A103: 195 | M103: Interessi su prestiti 1° anno | N103: =N100*GrossLoanInterest/100 -> 113025 | Q103: €
A104: 196 | M104: Rata annuale prestito senior (mutuo) | N104: =-PMT(GrossLoanInterest/100,LoanPeriod,N101) -> 114473.3235 | P104: =PMT(LoanAmount,GrossLoanInterest,LoanPeriod) -> -41100000 | Q104: €
A105: 197 | M105: Rata annuale prestito ponte fino all'erogazione del sussidio | N105: =Annuity+SubsidyAmount*GrossLoanInterest/100 -> 152258.3235 | P105: =PMT(LoanAmount,GrossLoanInterest,LoanPeriod) -> -41100000 | Q105: €

Sheet Costo del calore
B1: Calcolo della redditività economica - Prezzo del calore
B3: Titolo del progetto: | D3: =IF('Dati di ingresso'!F4<>"",'Dati di ingresso'!F4,"") -> Esempio di progetto
J4: TRUE
A5: 100 | B5: (IVA esclusa) | D5: cella di input | J5: TRUE
A7: 401 | B7: Opzione | D7: Prezzo profilato per tipologia di cliente | J7: =IF(J4,(G23*G16+G26*G33+G36*G43)/100*1000,G48) -> 61.86363636
A8: 402 | D8: Sconti sul prezzo secondo le quantità di calore vendute | J8: =IF(J5,(J60+K60+L60)/100*1000,0) -> 57.21045455
A10: 403 | B10: Prezzo di vendita: | E10: =IF(AND(J4,J5),J8,J7) -> 57.21045455 | F10: €/MWh | H10: =E10/1000 -> 0.05721045455 | I10: €/kWh | J10: Errore | K10: Attenzione
B12: Avvertenze | C12: =IF(J12>0,K12,"") ->  | J12: =SUM(J14:J43) -> 0 | K12: =K14&K16&K17&K18&K19&K20&K21&K23&K26&K27&K28&K29&K30&K31&K33&K36&K37&K38&K39&K40&K41&K43&K7 -> 
A14: 404 | B14: Prezzo profilato per tipologia di cliente | J14: =IF(G16+G26+G36>100,1,0) -> 0 | K14: =IF(J14>0,L14,"") ->  | L14: Somma dei consumi di calore di tuitte le categorie di clienti è maggiore del 100%. Correggi! Verifica punti 405, 412 & 413.
A16: 405 | B16: Tipo cliente 1 | D16: Cliente privato | G16: 15 | H16: % of the heat sale | J16: =IF(G16+G26+G36<100,1,0) -> 0 | K16: =IF(J16>0,L16,"") ->  | L16: Somma dei consumi di calore di tuitte le categorie di clienti è minore del 100%. Correggi! Verifica punti 405, 412 & 413.
A17: 406 | F17: Costo fisso Impegno in potenza | G17: 60 | H17: €/kW | K17: =IF(J17>0,L17,"") -> 
A18: 407 | F18: Servizio misure e gest. Contatore | G18: 60 | H18: €/a
A19: 408 | F19: Prezzo energia fornita | G19: 0.045 | H19: €/kWh
A20: 409 | F20: Potenza media installata | G20: 14 | H20: kW | J20: =IF(G20>G30,1,0) -> 0 | L20: Potenza installata (i.e. expected connected load) per clienti privati è più alta di quella per clienti commerciali!
A21: 410 | F21: Consumo medio di calore | G21: 24000 | H21: kWh
A23: 411 | F23: Prezzo del calore Tipo 1 | G23: =(G17*G20+G18+G19*G21)/G21 -> 0.0825 | H23: €/kWh
A26: 412 | B26: Tipo cliente 2 | D26: Cliente commerciale | G26: 25 | H26: % of the heat sale
A27: 406 | F27: Costo fisso Impegno in potenza | G27: 50 | H27: €/kW
A28: 407 | F28: Servizio misure e gest. Contatore | G28: 90 | H28: €/a
A29: 408 | F29: Prezzo energia fornita | G29: 0.04 | H29: €/kWh
A30: 409 | F30: Potenza media installata | G30: 35 | H30: kW | J30: =IF(G30>G40,1,0) -> 0 | L30: Potenza installata (i.e. expected connected load) per clienti commerciali più alta di quella per grandi consumatori!
A31: 410 | F31: Consumo medio di calore | G31: 55000 | H31: kWh
A33: 411 | F33: Prezzo del calore Tipo 2 | G33: =(G27*G30+G28+G29*G31)/G31 -> 0.07345454545 | H33: €/kWh
A36: 413 | B36: Tipo cliente 3 | D36: Grande consumatore | G36: 60 | H36: % of the heat sale
A37: 406 | F37: Costo fisso Impegno in potenza | G37: 10 | H37: €/kW
A38: 407 | F38: Servizio misure e gest. Contatore | G38: 250 | H38: €/a
A39: 408 | F39: Prezzo energia fornita | G39: 0.03 | H39: €/kWh
A40: 409 | F40: Potenza media installata | G40: 500 | H40: kW
A41: 410 | F41: Consumo medio di calore | G41: 240000 | H41: kWh
A43: 411 | F43: Prezzo del calore Tipo 3 | G43: =(G37*G40+G38+G39*G41)/G41 -> 0.051875 | H43: €/kWh
A46: 414 | B46: Prezzo medio unico
A48: 414 | F48: Prezzo medio unico del calore | G48: =K48*10 -> 0.5789968652 | H48: €/MWh | K48: =((G23*G21)+(G33*G31)+(G43*G41))/(G21+G31+G41) -> 0.05789968652
A50: 415 | B50: Sconti sul prezzo
D53: Limite inferiore | E53: Limite superiore
B54: Scaglioni di consumo | D54: da kWh/a | E54: a kWh/a | G54: Sconto | H54: coefficiente riduzione prezzo | J54: Prezzo 1 | K54: Prezzo 2 | L54: Prezzo 3
A55: 416 | B55: Scaglione 1 | D55: 0 | E55: 50000 | F55: kWh/a | G55: 0 | H55: =100%-G55 -> 1 | J55: =IF($G$21<$E55,$G$23*$H55*$G$16,0) -> 1.2375 | K55: =IF($G$31<$E55,$G$33*$H55*$G$26,0) -> 0 | L55: =IF($G$41<$E55,$G$43*$H55*$G$36,0) -> 0
A56: 417 | B56: Scaglione 2 | D56: =E55+1 -> 50001 | E56: 120000 | F56: kWh/a | G56: 0.05 | H56: =100%-G56 -> 0.95 | J56: =IF(J55>0,0,IF($G$21<$E56,$G$23*$H56*$G$16,0)) -> 0 | K56: =IF(K55>0,0,IF($G$31<$E56,$G$33*$H56*$G$26,0)) -> 1.744545455 | L56: =IF(L55>0,0,IF($G$41<$E56,$G$43*$H56*$G$36,0)) -> 0
A57: 418 | B57: Scaglione 3 | D57: =E56+1 -> 120001 | E57: 180000 | F57: kWh/a | G57: 0.08 | H57: 0.92 | J57: =IF(J56+J55>0,0,IF($G$21<$E57,$G$23*$H57*$G$16,0)) -> 0 | K57: =IF(K55+K56>0,0,IF($G$31<$E57,$G$33*$H57*$G$26,0)) -> 0 | L57: =IF(L56+L55>0,0,IF($G$41<$E57,$G$43*$H57*$G$36,0)) -> 0
A58: 419 | B58: Scaglione 4 | D58: =E57+1 -> 180001 | E58: 350000 | F58: kWh/a | G58: 0.12 | H58: 0.88 | J58: =IF(J55+J56+J57>0,0,IF($G$21<$E58,$G$23*$H58*$G$16,0)) -> 0 | K58: =IF(K55+K56+K57>0,0,IF($G$31<$E58,$G$33*$H58*$G$26,0)) -> 0 | L58: =IF(L55+L56+L57>0,0,IF($G$41<$E58,$G$43*$H58*$G$36,0)) -> 2.739
A59: 420 | B59: Scaglione 5 | D59: =E58+1 -> 350001 | E59: =1E+99 -> 1e+99 | F59: kWh/a | G59: 0.15 | H59: 0.85 | J59: =IF(J55+J56+J57+J58>0,0,IF($G$21<$E59,$G$23*$H59*$G$16,0)) -> 0 | K59: =IF(K55+K56+K57+K58>0,0,IF($G$31<$E59,$G$33*$H59*$G$26,0)) -> 0 | L59: =IF(L55+L56+L57+L58>0,0,IF($G$41<$E59,$G$43*$H59*$G$36,0)) -> 0
J60: =SUM(J55:J59) -> 1.2375 | K60: =SUM(K55:K59) -> 1.744545455 | L60: =SUM(L55:L59) -> 2.739

Sheet Risultati
A1: 900 | B1: Calcolo della redditività economica - Risultati
B3: Titolo del progetto: | D3: =IF('Dati di ingresso'!F4<>"",'Dati di ingresso'!F4,"") -> Esempio di progetto | L3: =IF('Dati di ingresso'!E8&'Costo del calore'!C12<>"","Es existieren Warnungen","") -> 
A4: 156 | B4: Investimento: | D4: =TotalInvestment -> 2355000 | E4: € | G4: Contributo/i: | H4: =IF('Dati di ingresso'!AG75,SubsidyAmount,0) -> 687000 | J4: €
A5: 161 | B5: Mezzi propri | D5: =Equity -> 300000 | E5: € | G5: Avvio progetto | H5: =ProjectStart -> 2009
A7: 901 | B7: Costi operativi (100% vendita calore nell'anno 1) | G7: Importo [€] | H7: Indice [%] | I7: Anno di riferimento | K7: 905 | L7: Ricavi (100% vendita calore nell'anno 1) | P7: Importo [€] | Q7: Indice [%] | R7: Anno di riferimento [a]
G8: =SUM(G10:G17) -> 397268.2773 | H8: =(G10*H10+G11*H11+G12*H12+G13*H13+G14*H14+G15*H15+G16*H16+G17*H17)/(SUM(G10:G17)) -> 0.02359673231 | I8: =ProjectStart -> 2009 | P8: =SUM(P10:P12) -> 507250 | Q8: =(P10*Q10+P11*Q11+P12*Q12)/(SUM(P10:P12)) -> 0.02503449975 | R8: =ProjectStart -> 2009
B10: Combustibile da biomassa | G10: =BiomassFuelPrice*BiomassFuelUsed -> 321722.6891 | H10: =BiomassFuelPriceTrend/100 -> 0.02 | I10: 2009 | L10: Vendita di calore | P10: =HeatQuantitySold*HeatSalesPrice -> 503750 | Q10: =HeatSalesPriceTrend/100 -> 0.025 | R10: =ProjectStart -> 2009
B11: Combustibile fossile | G11: =FossilFuelUsed*FossilFuelPrice -> 36470.58824 | H11: =FossilFuelPriceTrend/100 -> 0.05 | I11: 2009 | L11: incentivi in corso | P11: =IF('Dati di ingresso'!$AG$79,OngoingSubsidyYear1,0) -> 3500 | Q11: =IF(P11=0,0,OngoingSubsidyTrend/100) -> 0.03 | R11: =IF(P11=0,"",ProjectStart) -> 2009
B12: Costi del personale | G12: =PersonnelExpenses -> 15000 | H12: =PersonnelExpensesTrend/100 -> 0.02 | I12: 2009 | L12: Ricavi aggiuntivi | P12: =OtherRevenues -> 0 | Q12: =IF(P12=0,0,OtherRevenuesTrend/100) -> 0 | R12: =IF(P12=0,"",ProjectStart) -> 
B13: Energia elettrica | G13: ='Dati di ingresso'!N95 -> 10075 | H13: =ElectricityPriceTrend/100 -> 0.05 | I13: 2009 | K13: 910 | L13: VAN: | P13: Importo [€]
B14: Contabilità e consulenza | G14: =AccountingConsultingExp -> 0 | H14: =IF(G14=0,0,AccountingConsultingExpTrend/100) -> 0 | I14: =IF(G14=0,"",ProjectStart) ->  | L14: VAN (Periodo 1-10) | P14: =NPV(InterestRate/100,R25:R$34) -> -69025.9914
B15: Manutenzione | G15: =MaintenanceCosts -> 9000 | H15: =MaintenanceCostsTrend/100 -> 0.02 | I15: 2009 | L15: VAN (Periodo 1-15) | P15: =NPV(InterestRate/100,R25:R$39) -> 55082.91581
B16: Affitto / affitto / terreno | G16: =LandCosts -> 3500 | H16: =IF(G16=0,0,LandCostsTrend/100) -> 0.025 | I16: =IF(G16=0,"",ProjectStart) -> 2009 | L16: VAN (Periodo 1-20) | P16: =NPV(InterestRate/100,R25:R$44) -> 196416.8272
B17: Altri (assicurazioni, ecc.) | G17: =OtherCosts -> 1500 | H17: =IF(G17=0,0,OtherCostsTrend/100) -> 0.03 | I17: =IF(G17=0,"",ProjectStart) -> 2009 | L17: VAN (Periodo 1-25) | P17: =NPV(InterestRate/100,R25:R$49) -> 491013.6046
A20: 920 | D20: Uscite finanziarie | M20: Entrate finanziarie
A22: 930- 950 | B22: Anno | C22: Vendita calore | D22: Combustibile da biomassa | E22: Combustibile fossile | F22: Personale, contabilità e consulenza | G22: Elettricità | H22: Manutenzione | I22: Altri (affitto, ecc.) | J22: Esborsi aggiuntivi | K22: Rata mutuo | L22: Totale uscite per costi operativi + rate mutuo | M22: Vendita di calore | N22: Entrate una tantum per allacciamento rete | O22: Incentivi annuali | P22: Altri ricavi | Q22: Totale entrate | R22: Flussi finanziari netti annuali per il calcolo del VAN | S22: Flussi di cassa cumulativi | U22: anno | V22: Dewbito residuo a fine anno | W22: Contributo
C23: 1 | D23: 2 | E23: 3 | F23: 4 | G23: 5 | H23: 6 | I23: 7 | J23: 8 | K23: 9 | L23: 10=2+3+4+ 5+6+7+8+9 | M23: 11 | N23: 12 | O23: 13 | P23: 14 | Q23: 15 = 11+12 +13+14 | R23: 16 = 15 - 10 | S23: 17 = 16 + 17 (PY Previous Year) | V23: 18 | W23: 19
B24: [yyyy] | C24: % | D24: €/a | E24: €/a | F24: €/a | G24: €/a | H24: €/a | I24: €/a | J24: €/a | K24: €/a | L24: €/a | M24: €/a | N24: €/a | O24: €/a | P24: €/a | Q24: €/a | R24: €/a | V24: € | W24: €
B25: =ProjectStart -> 2009 | C25: =ConsFactor_y1 -> 60 | D25: =BiomassFuelUsed*C25/100*BiomassFuelPrice -> 193033.6134 | E25: =FossilFuelUsed*FossilFuelPrice*C25/100 -> 21882.35294 | F25: =PersonnelExpenses+AccountingConsultingExp -> 15000 | G25: =SpecificElectCons*HeatQuantitySold*ElectricityPrice*C25/100 -> 6045 | H25: ='Dati di ingresso'!N50 -> 9000 | I25: =LandCosts+OtherCosts -> 5000 | J25: 0 | K25: =IF(SubsidyDisbursementYear=1,Annuity,AnnuityTillSubsidyDisb)+Equity -> 452258.3235 | L25: =SUM(D25:K25) -> 702219.2899 | M25: =HeatQuantitySold*C25/100*HeatSalesPrice -> 302250 | N25: =ConnectionFees*C25/100 -> 210000 | O25: =IF('Dati di ingresso'!$AG$79,OngoingSubsidyYear1,0) -> 3500 | P25: =P12 -> 0 | Q25: =SUM(M25:P25) -> 515750 | R25: =-L25+Q25 -> -186469.2899 | U25: 1 | V25: =IF(ISNUMBER(-LoanAmount-PPMT(GrossLoanInterest/100,$U25,LoanPeriod,LongtermLoanAmount,0)+$W25),-LoanAmount-PPMT(GrossLoanInterest/100,$U25,LoanPeriod,LongtermLoanAmount,0)+$W25,0) -> -2015766.677 | W25: =IF(SubsidyDisbursementYear=1,IstFörderBetrag,0) -> 0
B26: =B25+1 -> 2010 | C26: =ConsFactor_y2 -> 80 | D26: =BiomassFuelUsed*C26/100*BiomassFuelPrice*(1+$H$10)^1 -> 262525.7143 | E26: =FossilFuelUsed*FossilFuelPrice*C26/100*(1+$H$11)^1 -> 30635.29412 | F26: =$G$12*(1+$H$12)^(B26-B$25)+$G$14*(1+$H$14)^(B26-B$25) -> 15300 | G26: =SpecificElectCons*HeatQuantitySold*ElectricityPrice*(C26/100)*(1+$H$13) -> 8463 | H26: =H25*(1+$H$15) -> 9180 | I26: =$G$16*(1+$H$16)^(B26-B$25)+$G$17*(1+$H$17)^(B26-B$25) -> 5132.5 | J26: 0 | K26: =IF(SubsidyDisbursementYear<=2,Annuity,AnnuityTillSubsidyDisb) -> 152258.3235 | L26: =SUM(D26:K26) -> 483494.8319 | M26: =HeatQuantitySold*C26/100*HeatSalesPrice*(1+$Q$10) -> 413075 | N26: =ConnectionFees*(C26-C25)/100 -> 70000 | O26: =IF('Dati di ingresso'!$AG$79,O25+OngoingSubsidyIncrease+OngoingSubsidyTrend*O25/100,0) -> 4605 | P26: =$P$25*(1+$Q$12)^1 -> 0 | Q26: =SUM(M26:P26) -> 487680 | R26: =-L26+Q26 -> 4185.168109 | S26: =R25+R26 -> -182284.1218 | U26: 2 | V26: =IF(ISNUMBER(V25-PPMT(GrossLoanInterest/100,$U26,LoanPeriod,LongtermLoanAmount,0)+$W26),V25-PPMT(GrossLoanInterest/100,$U26,LoanPeriod,LongtermLoanAmount,0)+$W26,0) -> -1974375.52 | W26: =IF(SubsidyDisbursementYear=2,SubsidyAmount,0) -> 0
B27: =B26+1 -> 2011 | C27: =ConsFactor_y3 -> 100 | D27: =BiomassFuelUsed*C27/100*BiomassFuelPrice*(1+$H$10)^2 -> 334720.2857 | E27: =FossilFuelUsed*FossilFuelPrice*C27/100*(1+$H$11)^2 -> 40208.82353 | F27: 15606 | G27: =SpecificElectCons*HeatQuantitySold*ElectricityPrice*(C27/100)*(1+$H$13)^2 -> 11107.6875 | H27: =H26*(1+$H$15) -> 9363.6 | I27: =$G$16*(1+$H$16)^(B27-B$25)+$G$17*(1+$H$17)^(B27-B$25) -> 5268.5375 | J27: 0 | K27: =IF(SubsidyDisbursementYear<=3,Annuity,AnnuityTillSubsidyDisb) -> 152258.3235 | L27: 568533.2577 | M27: =HeatQuantitySold*C27/100*HeatSalesPrice*(1+$Q$10)^2 -> 529252.3438 | N27: =ConnectionFees*(C27-C26)/100 -> 70000 | O27: =IF('Dati di ingresso'!$AG$79,O26+OngoingSubsidyIncrease+OngoingSubsidyTrend*O26/100,0) -> 5743.15 | P27: =$P$25*(1+$Q$12)^2 -> 0 | Q27: =SUM(M27:P27) -> 604995.4938 | R27: 36462.23602 | S27: =S26+R27 -> -145821.8857 | U27: 3 | V27: -1930707.85 | W27: =IF(SubsidyDisbursementYear=3,SubsidyAmount,0) -> 0
B28: 2012 | C28: =$C$27*(IF(((1+'Dati di ingresso'!$N$20/100)^1)>(1+ConsFactorMax/100),(1+ConsFactorMax/100),(1+'Dati di ingresso'!$N$20/100)^1)) -> 100 | D28: =BiomassFuelUsed*C28/100*BiomassFuelPrice*(1+$H$10)^3 -> 341414.6914 | E28: =FossilFuelUsed*FossilFuelPrice*C28/100*(1+$H$11)^3 -> 42219.26471 | F28: 15918.12 | G28: =SpecificElectCons*HeatQuantitySold*ElectricityPrice*(C28/100)*(1+$H$13)^3 -> 11663.07188 | H28: =H27*(1+$H$15) -> 9550.872 | I28: 5408.207687 | J28: 0 | K28: =IF(SubsidyDisbursementYear<=4,Annuity,AnnuityTillSubsidyDisb) -> 152258.3235 | L28: 578432.5512 | M28: =HeatQuantitySold*C28/100*HeatSalesPrice*(1+$Q$10)^3 -> 542483.6523 | N28: =ConnectionFees*(C28-C27)/100 -> 0 | O28: =IF('Dati di ingresso'!$AG$79,O27+OngoingSubsidyIncrease+OngoingSubsidyTrend*O27/100,0) -> 6915.4445 | P28: =$P$25*(1+$Q$12)^3 -> 0 | Q28: 549399.0968 | R28: -29033.45434 | S28: =S27+R28 -> -174855.3401 | U28: 4 | V28: -1884638.459 | W28: =IF(SubsidyDisbursementYear=4,SubsidyAmount,0) -> 0
B29: 2013 | C29: =$C$27*(IF(((1+'Dati di ingresso'!$N$20/100)^2)>(1+ConsFactorMax/100),(1+ConsFactorMax/100),(1+'Dati di ingresso'!$N$20/100)^2)) -> 100 | D29: =BiomassFuelUsed*C29/100*BiomassFuelPrice*(1+$H$10)^4 -> 348242.9853 | E29: =FossilFuelUsed*FossilFuelPrice*C29/100*(1+$H$11)^4 -> 44330.22794 | F29: 16236.4824 | G29: =SpecificElectCons*HeatQuantitySold*ElectricityPrice*(C29/100)*(1+$H$13)^4 -> 12246.22547 | H29: =H28*(1+$H$15) -> 9741.88944 | I29: 5551.608332 | J29: 0 | K29: =IF(SubsidyDisbursementYear<=5,Annuity,AnnuityTillSubsidyDisb) -> 114473.3235 | L29: 550822.7423 | M29: =HeatQuantitySold*C29/100*HeatSalesPrice*(1+$Q$10)^4 -> 556045.7437 | N29: =ConnectionFees*(C29-C28)/100 -> 0 | O29: =IF('Dati di ingresso'!$AG$79,O28+OngoingSubsidyIncrease+OngoingSubsidyTrend*O28/100,0) -> 8122.907835 | P29: =$P$25*(1+$Q$12)^4 -> 0 | Q29: 564168.6515 | R29: 13345.90916 | S29: =S28+R29 -> -161509.4309 | U29: 5 | V29: -1149035.25 | W29: =IF(SubsidyDisbursementYear=5,SubsidyAmount,0) -> 687000
B30: 2014 | C30: =$C$27*(IF(((1+'Dati di ingresso'!$N$20/100)^3)>(1+ConsFactorMax/100),(1+ConsFactorMax/100),(1+'Dati di ingresso'!$N$20/100)^3)) -> 100 | D30: =BiomassFuelUsed*C30/100*BiomassFuelPrice*(1+$H$10)^5 -> 355207.845 | E30: =FossilFuelUsed*FossilFuelPrice*C30/100*(1+$H$11)^5 -> 46546.73934 | F30: 16561.21205 | G30: =SpecificElectCons*HeatQuantitySold*ElectricityPrice*(C30/100)*(1+$H$13)^5 -> 12858.53674 | H30: =H29*(1+$H$15) -> 9936.727229 | I30: 5698.839857 | J30: 0 | K30: =IF(B30-$B$25<LoanPeriod,Annuity,0) -> 114473.3235 | L30: 561283.2237 | M30: =HeatQuantitySold*C30/100*HeatSalesPrice*(1+$Q$10)^5 -> 569946.8872 | N30: =ConnectionFees*(C30-C29)/100 -> 0 | O30: =IF('Dati di ingresso'!$AG$79,O29+OngoingSubsidyIncrease+OngoingSubsidyTrend*O29/100,0) -> 9366.59507 | P30: =$P$25*(1+$Q$12)^5 -> 0 | Q30: 579313.4823 | R30: 18030.25865 | S30: =S29+R30 -> -143479.1723 | U30: 6 | V30: -1097758.866 | W30: =IF(SubsidyDisbursementYear=6,SubsidyAmount,0) -> 0
B31: 2015 | C31: =$C$27*(IF(((1+'Dati di ingresso'!$N$20/100)^4)>(1+ConsFactorMax/100),(1+ConsFactorMax/100),(1+'Dati di ingresso'!$N$20/100)^4)) -> 100 | D31: =BiomassFuelUsed*C31/100*BiomassFuelPrice*(1+$H$10)^6 -> 362312.0019 | E31: =FossilFuelUsed*FossilFuelPrice*C31/100*(1+$H$11)^6 -> 48874.07631 | F31: 16892.43629 | G31: =SpecificElectCons*HeatQuantitySold*ElectricityPrice*(C31/100)*(1+$H$13)^6 -> 13501.46358 | H31: 10135.46177 | I31: 5850.005409 | J31: 0 | K31: 114473.3235 | L31: 572038.7687 | M31: =HeatQuantitySold*C31/100*HeatSalesPrice*(1+$Q$10)^6 -> 584195.5594 | N31: 0 | O31: =IF('Dati di ingresso'!$AG$79,O30+OngoingSubsidyIncrease+OngoingSubsidyTrend*O30/100,0) -> 10647.59292 | P31: =$P$25*(1+$Q$12)^6 -> 0 | Q31: 594843.1523 | R31: 22804.38364 | S31: =S30+R31 -> -120674.7886 | U31: 7 | V31: -1043662.28 | W31: =IF(SubsidyDisbursementYear=7,SubsidyAmount,0) -> 0
B32: 2016 | C32: =$C$27*(IF(((1+'Dati di ingresso'!$N$20/100)^5)>(1+ConsFactorMax/100),(1+ConsFactorMax/100),(1+'Dati di ingresso'!$N$20/100)^5)) -> 100 | D32: =BiomassFuelUsed*C32/100*BiomassFuelPrice*(1+$H$10)^7 -> 369558.2419 | E32: =FossilFuelUsed*FossilFuelPrice*C32/100*(1+$H$11)^7 -> 51317.78012 | F32: 17230.28501 | G32: =SpecificElectCons*HeatQuantitySold*ElectricityPrice*(C32/100)*(1+$H$13)^7 -> 14176.53676 | H32: 10338.17101 | I32: 6005.210936 | J32: 0 | K32: 114473.3235 | L32: 583099.5492 | M32: =HeatQuantitySold*C32/100*HeatSalesPrice*(1+$Q$10)^7 -> 598800.4484 | N32: 0 | O32: =IF('Dati di ingresso'!$AG$79,O31+OngoingSubsidyIncrease+OngoingSubsidyTrend*O31/100,0) -> 11967.02071 | P32: =$P$25*(1+$Q$12)^7 -> 0 | Q32: =SUM(M32:P32) -> 610767.4691 | R32: 27667.9199 | S32: -93006.86874 | U32: 8 | V32: -986590.3817 | W32: =IF(SubsidyDisbursementYear=8,SubsidyAmount,0) -> 0
B33: 2017 | C33: =$C$27*(IF(((1+'Dati di ingresso'!$N$20/100)^6)>(1+ConsFactorMax/100),(1+ConsFactorMax/100),(1+'Dati di ingresso'!$N$20/100)^6)) -> 100 | D33: =BiomassFuelUsed*C33/100*BiomassFuelPrice*(1+$H$10)^8 -> 376949.4067 | E33: =FossilFuelUsed*FossilFuelPrice*C33/100*(1+$H$11)^8 -> 53883.66913 | F33: 17574.89072 | G33: =SpecificElectCons*HeatQuantitySold*ElectricityPrice*(C33/100)*(1+$H$13)^8 -> 14885.3636 | H33: 10544.93443 | I33: 6164.565263 | J33: 0 | K33: 114473.3235 | L33: 594476.1534 | M33: =HeatQuantitySold*C33/100*HeatSalesPrice*(1+$Q$10)^8 -> 613770.4596 | N33: 0 | O33: =IF('Dati di ingresso'!$AG$79,O32+OngoingSubsidyIncrease+OngoingSubsidyTrend*O32/100,0) -> 13326.03133 | P33: =$P$25*(1+$Q$12)^8 -> 0 | Q33: 627096.491 | R33: 32620.3376 | S33: -60386.53114 | U33: 9 | V33: -926379.5292 | W33: =IF(SubsidyDisbursementYear=9,SubsidyAmount,0) -> 0
B34: 2018 | C34: =$C$27*(IF(((1+'Dati di ingresso'!$N$20/100)^7)>(1+ConsFactorMax/100),(1+ConsFactorMax/100),(1+'Dati di ingresso'!$N$20/100)^7)) -> 100 | D34: =BiomassFuelUsed*C34/100*BiomassFuelPrice*(1+$H$10)^9 -> 384488.3949 | E34: =FossilFuelUsed*FossilFuelPrice*C34/100*(1+$H$11)^9 -> 56577.85258 | F34: 17926.38853 | G34: =SpecificElectCons*HeatQuantitySold*ElectricityPrice*(C34/100)*(1+$H$13)^9 -> 15629.63178 | H34: 10755.83312 | I34: 6328.180171 | J34: 0 | K34: 114473.3235 | L34: 606179.6045 | M34: =HeatQuantitySold*C34/100*HeatSalesPrice*(1+$Q$10)^9 -> 629114.7211 | N34: 0 | O34: =IF('Dati di ingresso'!$AG$79,O33+OngoingSubsidyIncrease+OngoingSubsidyTrend*O33/100,0) -> 14725.81227 | P34: =$P$25*(1+$Q$12)^9 -> 0 | Q34: 643840.5334 | R34: 37660.92885 | S34: =S33+R34 -> -22725.6023 | U34: 10 | V34: -862857.0798 | W34: =IF(SubsidyDisbursementYear=10,SubsidyAmount,0) -> 0
B35: 2019 | C35: =$C$27*(IF(((1+'Dati di ingresso'!$N$20/100)^8)>(1+ConsFactorMax/100),(1+ConsFactorMax/100),(1+'Dati di ingresso'!$N$20/100)^8)) -> 100 | D35: =BiomassFuelUsed*C35/100*BiomassFuelPrice*(1+$H$10)^10 -> 392178.1628 | E35: =FossilFuelUsed*FossilFuelPrice*C35/100*(1+$H$11)^10 -> 59406.74521 | F35: 18284.9163 | G35: =SpecificElectCons*HeatQuantitySold*ElectricityPrice*(C35/100)*(1+$H$13)^10 -> 16411.11336 | H35: 10970.94978 | I35: 6496.170474 | J35: 0 | K35: 114473.3235 | L35: 618221.3814 | M35: =HeatQuantitySold*C35/100*HeatSalesPrice*(1+$Q$10)^10 -> 644842.5891 | N35: 0 | O35: =IF('Dati di ingresso'!$AG$79,O34+OngoingSubsidyIncrease+OngoingSubsidyTrend*O34/100,0) -> 16167.58664 | P35: =$P$25*(1+$Q$12)^10 -> 0 | Q35: 661010.1758 | R35: 42788.79439 | S35: 20063.19209 | U35: 11 | V35: -795840.8957 | W35: =IF(SubsidyDisbursementYear=11,SubsidyAmount,0) -> 0
B36: 2020 | C36: =$C$27*(IF(((1+'Dati di ingresso'!$N$20/100)^9)>(1+ConsFactorMax/100),(1+ConsFactorMax/100),(1+'Dati di ingresso'!$N$20/100)^9)) -> 100 | D36: =BiomassFuelUsed*C36/100*BiomassFuelPrice*(1+$H$10)^11 -> 400021.726 | E36: =FossilFuelUsed*FossilFuelPrice*C36/100*(1+$H$11)^11 -> 62377.08247 | F36: 18650.61463 | G36: =SpecificElectCons*HeatQuantitySold*ElectricityPrice*(C36/100)*(1+$H$13)^11 -> 17231.66903 | H36: 11190.36878 | I36: 6668.654108 | J36: 0 | K36: 114473.3235 | L36: 630613.4385 | M36: =HeatQuantitySold*C36/100*HeatSalesPrice*(1+$Q$10)^11 -> 660963.6539 | N36: 0 | O36: =IF('Dati di ingresso'!$AG$79,O35+OngoingSubsidyIncrease+OngoingSubsidyTrend*O35/100,0) -> 17652.61424 | P36: =$P$25*(1+$Q$12)^11 -> 0 | Q36: 678616.2681 | R36: 48002.82958 | S36: 68066.02167 | U36: 12 | V36: -725138.8215 | W36: =IF(SubsidyDisbursementYear=12,SubsidyAmount,0) -> 0
B37: 2021 | C37: =$C$27*(IF(((1+'Dati di ingresso'!$N$20/100)^10)>(1+ConsFactorMax/100),(1+ConsFactorMax/100),(1+'Dati di ingresso'!$N$20/100)^10)) -> 100 | D37: =BiomassFuelUsed*C37/100*BiomassFuelPrice*(1+$H$10)^12 -> 408022.1605 | E37: =FossilFuelUsed*FossilFuelPrice*C37/100*(1+$H$11)^12 -> 65495.9366 | F37: 19023.62692 | G37: =SpecificElectCons*HeatQuantitySold*ElectricityPrice*(C37/100)*(1+$H$13)^12 -> 18093.25248 | H37: 11414.17615 | I37: 6845.752215 | J37: 0 | K37: 114473.3235 | L37: 643368.2284 | M37: =HeatQuantitySold*C37/100*HeatSalesPrice*(1+$Q$10)^12 -> 677487.7452 | N37: 0 | O37: =IF('Dati di ingresso'!$AG$79,O36+OngoingSubsidyIncrease+OngoingSubsidyTrend*O36/100,0) -> 19182.19267 | P37: =$P$25*(1+$Q$12)^12 -> 0 | Q37: 696669.9379 | R37: 53301.70948 | S37: 121367.7312 | U37: 13 | V37: -650548.1332 | W37: =IF(SubsidyDisbursementYear=13,SubsidyAmount,0) -> 0
B38: 2022 | C38: =$C$27*(IF(((1+'Dati di ingresso'!$N$20/100)^11)>(1+ConsFactorMax/100),(1+ConsFactorMax/100),(1+'Dati di ingresso'!$N$20/100)^11)) -> 100 | D38: =BiomassFuelUsed*C38/100*BiomassFuelPrice*(1+$H$10)^13 -> 416182.6038 | E38: =FossilFuelUsed*FossilFuelPrice*C38/100*(1+$H$11)^13 -> 68770.73343 | F38: 19404.09946 | G38: =SpecificElectCons*HeatQuantitySold*ElectricityPrice*(C38/100)*(1+$H$13)^13 -> 18997.91511 | H38: 11642.45967 | I38: 7027.589227 | J38: 0 | K38: 114473.3235 | L38: 656498.7241 | M38: =HeatQuantitySold*C38/100*HeatSalesPrice*(1+$Q$10)^13 -> 694424.9388 | N38: 0 | O38: =IF('Dati di ingresso'!$AG$79,O37+OngoingSubsidyIncrease+OngoingSubsidyTrend*O37/100,0) -> 20757.65845 | P38: =$P$25*(1+$Q$12)^13 -> 0 | Q38: 715182.5973 | R38: 58683.87315 | S38: =S37+R38 -> 180051.6043 | U38: 14 | V38: -571854.957 | W38: =IF(SubsidyDisbursementYear=14,SubsidyAmount,0) -> 0
B39: 2023 | C39: =$C$27*(IF(((1+'Dati di ingresso'!$N$20/100)^12)>(1+ConsFactorMax/100),(1+ConsFactorMax/100),(1+'Dati di ingresso'!$N$20/100)^12)) -> 100 | D39: =BiomassFuelUsed*C39/100*BiomassFuelPrice*(1+$H$10)^14 -> 424506.2558 | E39: =FossilFuelUsed*FossilFuelPrice*C39/100*(1+$H$11)^14 -> 72209.2701 | F39: 19792.18145 | G39: =SpecificElectCons*HeatQuantitySold*ElectricityPrice*(C39/100)*(1+$H$13)^14 -> 19947.81086 | H39: 11875.30887 | I39: 7214.292961 | J39: 0 | K39: 114473.3235 | L39: 670018.4436 | M39: =HeatQuantitySold*C39/100*HeatSalesPrice*(1+$Q$10)^14 -> 711785.5623 | N39: 0 | O39: =IF('Dati di ingresso'!$AG$79,O38+OngoingSubsidyIncrease+OngoingSubsidyTrend*O38/100,0) -> 22380.3882 | P39: =$P$25*(1+$Q$12)^14 -> 0 | Q39: 734165.9505 | R39: 64147.50696 | S39: 244199.1113 | U39: 15 | V39: -488833.6562 | W39: =IF(SubsidyDisbursementYear=15,SubsidyAmount,0) -> 0
B40: 2024 | C40: =$C$27*(IF(((1+'Dati di ingresso'!$N$20/100)^13)>(1+ConsFactorMax/100),(1+ConsFactorMax/100),(1+'Dati di ingresso'!$N$20/100)^13)) -> 100 | D40: =BiomassFuelUsed*C40/100*BiomassFuelPrice*(1+$H$10)^15 -> 432996.3809 | E40: =FossilFuelUsed*FossilFuelPrice*C40/100*(1+$H$11)^15 -> 75819.7336 | F40: 20188.02507 | G40: =SpecificElectCons*HeatQuantitySold*ElectricityPrice*(C40/100)*(1+$H$13)^15 -> 20945.20141 | H40: 12112.81504 | I40: 7405.994708 | J40: 0 | K40: 114473.3235 | L40: 683941.4743 | M40: =HeatQuantitySold*C40/100*HeatSalesPrice*(1+$Q$10)^15 -> 729580.2014 | N40: 0 | O40: =IF('Dati di ingresso'!$AG$79,O39+OngoingSubsidyIncrease+OngoingSubsidyTrend*O39/100,0) -> 24051.79984 | P40: =$P$25*(1+$Q$12)^15 -> 0 | Q40: 753632.0012 | R40: 69690.52695 | S40: 313889.6382 | U40: 16 | V40: -401246.1838 | W40: =IF(SubsidyDisbursementYear=16,SubsidyAmount,0) -> 0
B41: 2025 | C41: =$C$27*(IF(((1+'Dati di ingresso'!$N$20/100)^14)>(1+ConsFactorMax/100),(1+ConsFactorMax/100),(1+'Dati di ingresso'!$N$20/100)^14)) -> 100 | D41: =BiomassFuelUsed*C41/100*BiomassFuelPrice*(1+$H$10)^16 -> 441656.3086 | E41: =FossilFuelUsed*FossilFuelPrice*C41/100*(1+$H$11)^16 -> 79610.72028 | F41: 20591.78558 | G41: =SpecificElectCons*HeatQuantitySold*ElectricityPrice*(C41/100)*(1+$H$13)^16 -> 21992.46148 | H41: 12355.07135 | I41: 7602.829331 | J41: 0 | K41: 114473.3235 | L41: 698282.5001 | M41: =HeatQuantitySold*C41/100*HeatSalesPrice*(1+$Q$10)^16 -> 747819.7064 | N41: 0 | O41: =IF('Dati di ingresso'!$AG$79,O40+OngoingSubsidyIncrease+OngoingSubsidyTrend*O40/100,0) -> 25773.35384 | P41: =$P$25*(1+$Q$12)^16 -> 0 | Q41: 773593.0602 | R41: 75310.56018 | S41: 389200.1984 | U41: 17 | V41: -308841.4004 | W41: =IF(SubsidyDisbursementYear=17,SubsidyAmount,0) -> 0
B42: 2026 | C42: =$C$27*(IF(((1+'Dati di ingresso'!$N$20/100)^15)>(1+ConsFactorMax/100),(1+ConsFactorMax/100),(1+'Dati di ingresso'!$N$20/100)^15)) -> 100 | D42: =BiomassFuelUsed*C42/100*BiomassFuelPrice*(1+$H$10)^17 -> 450489.4347 | E42: =FossilFuelUsed*FossilFuelPrice*C42/100*(1+$H$11)^17 -> 83591.2563 | F42: 21003.62129 | G42: =SpecificElectCons*HeatQuantitySold*ElectricityPrice*(C42/100)*(1+$H$13)^17 -> 23092.08455 | H42: 12602.17277 | I42: 7804.935363 | J42: 0 | K42: 114473.3235 | L42: 713056.8285 | M42: =HeatQuantitySold*C42/100*HeatSalesPrice*(1+$Q$10)^17 -> 766515.1991 | N42: 0 | O42: =IF('Dati di ingresso'!$AG$79,O41+OngoingSubsidyIncrease+OngoingSubsidyTrend*O41/100,0) -> 27546.55446 | P42: =$P$25*(1+$Q$12)^17 -> 0 | Q42: 794061.7535 | R42: 81004.92503 | S42: 470205.1234 | U42: 18 | V42: -211354.3539 | W42: =IF(SubsidyDisbursementYear=18,SubsidyAmount,0) -> 0
B43: 2027 | C43: =$C$27*(IF(((1+'Dati di ingresso'!$N$20/100)^16)>(1+ConsFactorMax/100),(1+ConsFactorMax/100),(1+'Dati di ingresso'!$N$20/100)^16)) -> 100 | D43: =BiomassFuelUsed*C43/100*BiomassFuelPrice*(1+$H$10)^18 -> 459499.2234 | E43: =FossilFuelUsed*FossilFuelPrice*C43/100*(1+$H$11)^18 -> 87770.81911 | F43: 21423.69371 | G43: =SpecificElectCons*HeatQuantitySold*ElectricityPrice*(C43/100)*(1+$H$13)^18 -> 24246.68878 | H43: 12854.21623 | I43: 8012.455104 | J43: 0 | K43: 114473.3235 | L43: 728280.4199 | M43: =HeatQuantitySold*C43/100*HeatSalesPrice*(1+$Q$10)^18 -> 785678.079 | N43: 0 | O43: =IF('Dati di ingresso'!$AG$79,O42+OngoingSubsidyIncrease+OngoingSubsidyTrend*O42/100,0) -> 29372.95109 | P43: =$P$25*(1+$Q$12)^18 -> 0 | Q43: 815051.0301 | R43: 86770.61028 | S43: 556975.7337 | U43: 19 | V43: -108505.5199 | W43: =IF(SubsidyDisbursementYear=19,SubsidyAmount,0) -> 0
B44: 2028 | C44: =$C$27*(IF(((1+'Dati di ingresso'!$N$20/100)^17)>(1+ConsFactorMax/100),(1+ConsFactorMax/100),(1+'Dati di ingresso'!$N$20/100)^17)) -> 100 | D44: =BiomassFuelUsed*C44/100*BiomassFuelPrice*(1+$H$10)^19 -> 468689.2079 | E44: =FossilFuelUsed*FossilFuelPrice*C44/100*(1+$H$11)^19 -> 92159.36007 | F44: 21852.16759 | G44: =SpecificElectCons*HeatQuantitySold*ElectricityPrice*(C44/100)*(1+$H$13)^19 -> 25459.02322 | H44: 13111.30055 | I44: 8225.534729 | J44: 0 | K44: 114473.3235 | L44: 743969.9175 | M44: =HeatQuantitySold*C44/100*HeatSalesPrice*(1+$Q$10)^19 -> 805320.031 | N44: 0 | O44: =IF('Dati di ingresso'!$AG$79,O43+OngoingSubsidyIncrease+OngoingSubsidyTrend*O43/100,0) -> 31254.13962 | P44: =$P$25*(1+$Q$12)^19 -> 0 | Q44: 836574.1706 | R44: 92604.2531 | S44: 649579.9868 | U44: 20 | V44: 3.783497959e-10 | W44: =IF(SubsidyDisbursementYear=20,SubsidyAmount,0) -> 0
B45: 2029 | C45: =$C$27*(IF(((1+'Dati di ingresso'!$N$20/100)^18)>(1+ConsFactorMax/100),(1+ConsFactorMax/100),(1+'Dati di ingresso'!$N$20/100)^18)) -> 100 | D45: =BiomassFuelUsed*C45/100*BiomassFuelPrice*(1+$H$10)^20 -> 478062.9921 | E45: =FossilFuelUsed*FossilFuelPrice*C45/100*(1+$H$11)^20 -> 96767.32807 | F45: 22289.21094 | G45: =SpecificElectCons*HeatQuantitySold*ElectricityPrice*(C45/100)*(1+$H$13)^20 -> 26731.97438 | H45: 13373.52656 | I45: 8444.324393 | J45: 0 | K45: 0 | L45: 645669.3564 | M45: =HeatQuantitySold*C45/100*HeatSalesPrice*(1+$Q$10)^20 -> 825453.0318 | N45: 0 | O45: =IF('Dati di ingresso'!$AG$79,O44+OngoingSubsidyIncrease+OngoingSubsidyTrend*O44/100,0) -> 33191.76381 | P45: =$P$25*(1+$Q$12)^20 -> 0 | Q45: 858644.7956 | R45: 212975.4392 | S45: =S44+R45 -> 862555.426 | U45: 21 | V45: 0 | W45: =IF(SubsidyDisbursementYear=21,SubsidyAmount,0) -> 0
B46: 2030 | C46: =$C$27*(IF(((1+'Dati di ingresso'!$N$20/100)^19)>(1+ConsFactorMax/100),(1+ConsFactorMax/100),(1+'Dati di ingresso'!$N$20/100)^19)) -> 100 | D46: =BiomassFuelUsed*C46/100*BiomassFuelPrice*(1+$H$10)^21 -> 487624.2519 | E46: =FossilFuelUsed*FossilFuelPrice*C46/100*(1+$H$11)^21 -> 101605.6945 | F46: 22734.99516 | G46: =SpecificElectCons*HeatQuantitySold*ElectricityPrice*(C46/100)*(1+$H$13)^21 -> 28068.5731 | H46: 13640.9971 | I46: 8668.978337 | J46: 0 | K46: 0 | L46: 662343.4901 | M46: =HeatQuantitySold*C46/100*HeatSalesPrice*(1+$Q$10)^21 -> 846089.3576 | N46: 0 | O46: =IF('Dati di ingresso'!$AG$79,O45+OngoingSubsidyIncrease+OngoingSubsidyTrend*O45/100,0) -> 35187.51672 | P46: =$P$25*(1+$Q$12)^21 -> 0 | Q46: 881276.8743 | R46: 218933.3843 | S46: 1081488.81 | U46: 22 | V46: 0 | W46: =IF(SubsidyDisbursementYear=22,SubsidyAmount,0) -> 0
B47: 2031 | C47: =$C$27*(IF(((1+'Dati di ingresso'!$N$20/100)^20)>(1+ConsFactorMax/100),(1+ConsFactorMax/100),(1+'Dati di ingresso'!$N$20/100)^20)) -> 100 | D47: =BiomassFuelUsed*C47/100*BiomassFuelPrice*(1+$H$10)^22 -> 497376.7369 | E47: =FossilFuelUsed*FossilFuelPrice*C47/100*(1+$H$11)^22 -> 106685.9792 | F47: 23189.69506 | G47: =SpecificElectCons*HeatQuantitySold*ElectricityPrice*(C47/100)*(1+$H$13)^22 -> 29472.00175 | H47: 13913.81704 | I47: 8899.655005 | J47: 0 | K47: 0 | L47: 679537.885 | M47: =HeatQuantitySold*C47/100*HeatSalesPrice*(1+$Q$10)^22 -> 867241.5915 | N47: 0 | O47: =IF('Dati di ingresso'!$AG$79,O46+OngoingSubsidyIncrease+OngoingSubsidyTrend*O46/100,0) -> 37243.14223 | P47: =$P$25*(1+$Q$12)^22 -> 0 | Q47: 904484.7338 | R47: 224946.8488 | S47: 1306435.659 | U47: 23 | V47: 0 | W47: =IF(SubsidyDisbursementYear=23,SubsidyAmount,0) -> 0
B48: 2032 | C48: =$C$27*(IF(((1+'Dati di ingresso'!$N$20/100)^21)>(1+ConsFactorMax/100),(1+ConsFactorMax/100),(1+'Dati di ingresso'!$N$20/100)^21)) -> 100 | D48: =BiomassFuelUsed*C48/100*BiomassFuelPrice*(1+$H$10)^23 -> 507324.2717 | E48: =FossilFuelUsed*FossilFuelPrice*C48/100*(1+$H$11)^23 -> 112020.2782 | F48: 23653.48896 | G48: =SpecificElectCons*HeatQuantitySold*ElectricityPrice*(C48/100)*(1+$H$13)^23 -> 30945.60184 | H48: 14192.09338 | I48: 9136.517156 | J48: 0 | K48: 0 | L48: 697272.2512 | M48: =HeatQuantitySold*C48/100*HeatSalesPrice*(1+$Q$10)^23 -> 888922.6313 | N48: 0 | O48: =IF('Dati di ingresso'!$AG$79,O47+OngoingSubsidyIncrease+OngoingSubsidyTrend*O47/100,0) -> 39360.43649 | P48: =$P$25*(1+$Q$12)^23 -> 0 | Q48: 928283.0678 | R48: 231010.8166 | S48: 1537446.476 | U48: 24 | V48: 0 | W48: =IF(SubsidyDisbursementYear=24,SubsidyAmount,0) -> 0
B49: 2033 | C49: =$C$27*(IF(((1+'Dati di ingresso'!$N$20/100)^22)>(1+ConsFactorMax/100),(1+ConsFactorMax/100),(1+'Dati di ingresso'!$N$20/100)^22)) -> 100 | D49: =BiomassFuelUsed*C49/100*BiomassFuelPrice*(1+$H$10)^24 -> 517470.7571 | E49: =FossilFuelUsed*FossilFuelPrice*C49/100*(1+$H$11)^24 -> 117621.2921 | F49: 24126.55874 | G49: =SpecificElectCons*HeatQuantitySold*ElectricityPrice*(C49/100)*(1+$H$13)^24 -> 32492.88193 | H49: 14475.93525 | I49: 9379.731983 | J49: 0 | K49: 0 | L49: 715567.1571 | M49: =HeatQuantitySold*C49/100*HeatSalesPrice*(1+$Q$10)^24 -> 911145.6971 | N49: 0 | O49: =IF('Dati di ingresso'!$AG$79,O48+OngoingSubsidyIncrease+OngoingSubsidyTrend*O48/100,0) -> 41541.24959 | P49: =$P$25*(1+$Q$12)^24 -> 0 | Q49: 952686.9467 | R49: 237119.7896 | S49: 1774566.265 | U49: 25 | V49: 0 | W49: =IF(SubsidyDisbursementYear=25,SubsidyAmount,0) -> 0
A52: 980 | B52: Grafici delle principali grandezze finanziarie su 25 anni
A89: 981

Sheet Commenti
B1: Calcolo della redditività economica - valutazione
B4: Titolo progetto: | F4: Musterprojekt Mustermann
B6: Commenti ai risultati della valutazione della redditività (Interpretazione)
A8: 500
